{"text_format":"1","workbook":"xlsx","n_sheets":7,"sheets":["NAMAs","Support","Analysis","Submissions","Time","New ideas","NAMA Facility"],"not_rendered":{"charts":1,"images":0,"macros":1,"external_links":0,"defined_names":15,"comments":4,"pivot_tables":0},"unopened":[],"bounds":{"document_bytes":16777216,"sheet_cells":100000,"rows_first":2000,"rows_last":500,"rows_between":2000,"halvings":0,"cell_chars":16384,"cell_head_chars":4096},"cells_cut":0,"cells_raw":0,"read":"whole","date_system":"1900"}

{"sheet":"NAMAs","index":0,"n_rows":144,"n_cols":44,"rows_kept":144,"cut":false,"hidden":false,"merged":[[143,3,143,6]]}
[{"$f":"+Submissions!A1","v":"The NAMApipeline was produced by Jørgen Fenhann, UNEP DTU Partnership, 1. May 2016, jqfe@dtu.dk, Phone (+45)40202789"}]
[]
["ID","Ref","Linked to","Title","Region","Sub-region","Country","Province/State","Type of action","Technical description","Implementing Agency","Sector","Type","Sub-type","Start year of NAMA","Number of years for completion","Date of submission","NAMA category","Level of implementation","Status","Status2","Support offered from","Total support offered MUS$","Total cost MUS$","Local financial support from","Amount of Local finance MUS$","Other International financial support from","Amount of other International finance MUS$","Total requested support MUS$","Requested financial support MUS$","Requested technical support MUS$","Requested Capacity Building support MUS$","Average annual reduction MtCO2e/yr","Annual reduction in 2020 MtCO2e/yr","Accumulated GHG reduction in 2020 MtCO2e","MRV indicators","SD indicators","Transformational aspects of the NAMA","MW in 2020","Full time hours","Reduction in electricity consumption GWh","Ha","Reference","Energy & Emission reduction goal"]
["NAMA0001","NS-012",null,"NAMA in Renewable Energy and Energy Efficiency","Africa","West Africa","Mali",null,"No detailed information","A list of 14 activities","Agence de l'Environnement et du Développement Durbale (AEDD)","Energy supply","EE & Renewable energy","EE+Solar+Wind+Hydro",null,1.5,"2012-09-19","External support for preparation","Seeking Support",null,null,null,null,{"$f":"Z4+AB4+AC4","v":0.84},null,0.6,null,null,{"$f":"SUM(AD4:AF4)","v":0.24000000000000002},0.04,0.2,null,null,1.285034,null,null,null,"No information",null,null,null,null,"unfccc.int/cooperation_support/nama/items/6945.php"]
["NAMA0002","NS-013",null,"NAMA in the Forestry sector","Africa","West Africa","Mali",null,"No detailed information","A list of 10 activities","Agence de l'Environnement et du Développement Durbale (AEDD)","Forestry","Afforestation+Reforestation",null,null,null,"2012-09-19","External support for preparation","Seeking Support",null,null,null,null,0.2,null,0.1,null,null,0.1,0.04,0.06,null,null,1.2,null,null,null,"No information",null,null,null,null,"unfccc.int/cooperation_support/nama/items/6945.php"]
["NAMA0003"," -",null,"Interurban Electric Rail NAMA","Africa","East Africa","Ethiopia",null,null,"50% of road cargo replaced in 8 routes","Ethiopian Railways Corporation","Transport","Rail: electricication","Cargo transport",null,null,"2012-09-28","External support for preparation","Seeking Support","Withdrawn",null,null,null,0.5,null,null,null,null,0.5,0.4,0,0.1,null,null,null,null,null,null,null,null,null,null,"unfccc.int/cooperation_support/nama/items/6945.php"]
["NAMA0004","NR-011",null,"Clean Production Agreements in Chile","Latin America","South America","Chile",null,"Public-Private Clean Production Agreement (CPA), A CPA is a set of goals and specific actions to be implemented by the private sector. Govern ment cove 70% of the costs of the sustainability diagnosis of the sector, audits, technical assistance, training, certification, impact study, and overall coordination of the CPA."," 74 CPA signed + 10 new/yr until 2020","National Council for Clean Production (NCCP)","All","All",null,"2012-01-01",null,"2012-10-22","For recognition","Ongoing",null,null,null,null,3.6499999999999998E-2,"NCCP",3.6499999999999998E-2,null,null,0,0,0,0,null,2.25,18.399999999999999,null,null,"National government incentives to change. Multilevel interaction happened.",null,null,null,null,"unfccc.int/cooperation_support/nama/items/6949.php"]
["NAMA0005","NS-005",null,"Implementation of a National Forestry and Climate Change Strategy, including the development and implementation of a Platform for the Generation and trading of Forest Carbon Credits.","Latin America","South America","Chile",null,"Development of pilot sites that will be established in different types of forests and land ssuitable to forestation. Pilot units for the Generation and Trading of Forest Carbon Credits (PBCCh)","These pilots will include improvements in land titling processes,the identification and implementation of more appropriate forest management techniques,the generation of sub‐national reference levels and MRV systems, among others issues related to forestry carbon projects. ","National Forestry Corporation (CONAF) under Ministry of Agriculture","Forestry","Afforestation+Reforestation",null,"2013-01-01",4,"2012-11-20","External support for implementation","Seeking Support",null,null,null,null,22.8,"Government",8.4,"WB & Swiss Government",6.65,7.75,7.75,0,null,{"$f":"AI8/8","v":5.25},{"$f":"AI8/4","v":10.5},42,"Being developed together with REDD+ & FCPF",null,"Introduction of carbon market (in the forest sector).",null,null,null,null,"unfccc.int/cooperation_support/nama/items/6949.php"]
["NAMA0006","NS-002","NS-200","Sustainable production with low-emission technologies in agriculture and agroindustry production chains.","Latin America","South America","Uruguay",null,"Laboratory research for target sectors",null,"Ministry of Industry, Energy and Mining","Agriculture","Biomass energy",null,"?",null,"2012-11-27","External support for preparation","Seeking Support","Resubmitted",null,null,null,0.625,null,null,"The other activities finance by GEF",null,0.625,0.625,0,0,null,null,null,null,null,null,null,null,null,null,"unfccc.int/cooperation_support/nama/items/6945.php"]
["NAMA0007","NS-003",null,"Sustainable Housing Programme","Latin America","South America","Uruguay",null,"Government housing programme for 20,000 new houses for lower income families.","60 m2 houses for 3 persons. The technologies proposed for inclusion in the Program are solar water heaters and CFLs.","Ministry of Housing, Land Planning and Environment (MVOTMA)","Residential","EE buildings","EE lighting+Solar water heaters","?",1,"2012-11-27","External support for preparation","Seeking Support",null,null,null,null,0.35,"Government",null,null,null,0.35,0.3,0,0.05,null,null,null,null,"Target: Lower income families","National government incentives to change.",null,null,null,null,"unfccc.int/cooperation_support/nama/items/6945.php"]
["NAMA0008","NS-004",null,"High Integration Program of Wind Energy","Latin America","South America","Uruguay",null,"System analysis of 20%, 25% and 30% wind in the electicity grid. The goal of this Program is to have a full analysis of the electric system expansion in Uruguay with high levels of wind power.","a) Review of successful experiences in countries that already have a high integration of wind power. b) Analysis of existing regulations in Uruguay and identification of rules to be developed. c) Cooperation in the development of appropriate grid codes. d) Identification of critical scenarios. e) Training in tools for network studies and wind farms modelling. f) Development of studies and analysis of results. g) Critical analysis of the expansion plans. h) Capacity analysis of the electric system to meet the demand peaks and fluctuations in wind generation. i) Analysis of existing tools in the world and in Uruguay regarding weather and wind generation forecasts. j) Review of operational planning methodologies in countries with high wind power integration. Critical analysis of operational planning system in Uruguay and identification of changes to be made to integrate high levels of wind generation. k) Visit to control and dispatch centers from systems with high wind integration around the world. Capacity building regarding operation and system dispatch with high levels of wind integration. ","Ministry of Industry,Energy and Mining","Energy supply","Wind",null,"2012-01-01",2,"2012-11-27","External support for preparation","Seeking Support","Supported",null,"S-143",0,1.25,"Government",0.5,null,null,0.75,0.75,0,0,null,null,null,null,null,"Goal for a rapid large scale GHG reduction.",1000,null,null,null,"unfccc.int/cooperation_support/nama/items/6945.php","20% of electricity from wind in 2015"]
["NAMA0009","NS-010",null,"First introduction of Photovoltaic Solar Energy in the national electrical grid.","Latin America","South America","Uruguay",null,"Building the first two solar farms (pilots) connected to the grid in order to test the technologies and their performance.","After these 2 plants, the objective is to lead a continuous expansion of this technologies, willing to achieve de goal of 200 MW in 2020.","Ministry of Industry,Energy and Mining","Energy supply","Solar","Solar PV","2015-01-01",null,"2012-11-27","External support for implementation","Seeking Support",null,null,null,null,2,null,null,null,null,2,2,0,0,{"$f":"4.58/30","v":0.15266666666666667},0.22,{"$f":"0.5*5*AH12","v":0.55000000000000004},"National Statistics",null,"First of its kind project. The project will be replicated, model for similar projects in other areas of the country. Goal for a rapid large scale GHG reduction.",200,null,null,null,"unfccc.int/cooperation_support/nama/items/6982.php","200 MW of solar in 2020"]
["NAMA0010","NR-006",null,"LNG Terminal with regasification capacity of 10.000.000m3/d of natural gas with possible expansion to 15.000.000m3/d","Latin America","South America","Uruguay",null,"Diversifying the national energy mix to have thermal back-up for increasing the renewable energy.","Build LNG terminal to increase the supply of natural gas.","Ministry of Industry,Energy and Mining","Energy supply","LNG terminal",null,"2012-01-01",3,"2012-11-27","For recognition","Under implementation",null,null,null,null,505,"Public Power Utitlity UTE",{"$f":"500+5","v":505},null,null,0,null,null,null,0.49,0.49,{"$f":"AG13*8","v":3.92},"National Statistics",null,"The project will transform a sector. ",null,null,null,null,"unfccc.int/cooperation_support/nama/items/6949.php"]
["NAMA0011","NR-007",null,"Promotion of renewable energy participation in the Uruguayan primary energy mix","Latin America","South America","Uruguay",null,"Energy Policy goal of minimum 50% renewable energy sources in the energy supply mix in 2015. Tax benefits for renewable energy.","880 MW from wind, 7 MW for solar and 250 MW from biomass (forestry, rice and bagasse byproducts and black liquor).","Ministry of Industry,Energy and Mining","Energy supply","Biofuels, Biomass, Wind, Solar ",null,"2005-01-01",10,"2012-11-27","For recognition","880 MW from wind, 7 MW for solar and 250 MW from biomass (forestry, rice and bagasse byproducts and black liquor).\n",null,null,null,null,0,null,null,null,null,0,null,null,null,5.2,5.2,{"$f":"8*AG14","v":41.6},"National Statistics",null,"Goal for a rapid large scale GHG reduction. Financial support for low carbon technologies.",{"$f":"250+880+7","v":1137},null,null,null,"unfccc.int/cooperation_support/nama/items/6949.php","55% of energy supply is from renewables in 2015"]
["NAMA0012","NS-065",null,"Sustainable Urban Transport Initiative (SUTRI)","Asia & Pacific","Southeast Asia","Indonesia",null,"Developmen of Low-C Urban Transport policy. Pilot implementation in Medan, Menado & Batam. Aim at upscaling the policies of the pilot phase to more Indonesian cities","At national level, development of a Policy Framework for Sustainable, Low‐carbon Urban Transport, comprising a regulatory framework, co‐financing of local measures, capacity building, practical guidelines for local planning, and overall MRV of the actions. At the local or provincial level, development, implementation and MRV of Comprehensive Urban Low‐carbon Mobility Plans. The sustainable transport policies covered include a tailor‐made mix of ‘push’ and ‘pull’ measures for each city, including high quality public transport, non‐motorised transport, parking management, traffic management, spatial planning, alternative fuels and vehicle efficiency.","Ministry of Transport","Transport","Public transport, traffic management, EE, alternative fuels, non-motorised etc",null,"2013-01-01",8,"2012-11-28","External support for implementation","Design of local plans ongoing","Supported",null,"S-62",{"$f":"14/0.84","v":16.666666666666668},800,null,480,"ICI of German BMU",null,320,300,20,null,null,5,null,"km of biking lanes, travel speed, nework coverage etc","Air-quality, Accessibility, Equity, Road safety, City livability","First of its kind project. The project will be replicated, model for similar projects in other areas of the country. Experimentation and innovation in policy.",0,null,null,null,"www.nama-facility.org/fileadmin/user_upload/pdf/Indonesia_Presentation_Warsawa_UNFCCC-NAMA_Facility_MoT_of_Indonesia.pdf","Urban Transport emissions 15% below BAU in 2020 in the pilot cities"]
["NAMA0013","NS-008",null,"Expanding self‐supply renewable energy systems (SSRES) in Chile","Latin America","South America","Chile",null,"Address technical and financial barriers to small-scale renewable energy systems for self-supply in industrial, agricultural and commercial sectors, through financial instruments, technical support, and outreach and awareness with the support from the Renewable Energy Centre."," 1. Financial component: i) Preinvestment grants ii) Fund for renewable energy investments 2. Technical Support component: i) Training and capacity building. ii) Technical help desk : A technical help desk will be set up to provide a central entry point for project developers and other stakeholders in the self supply RE technology market.","Renewable Energy Centre (part of CORFO)","Industry & Agriculture & Service","Renewable energy in Industry, Agriculture and Commercial","Bioenergy, Hydro, Wind, Geothermal, Solar & Tidal","2013-01-01",10,"2012-12-21","External support for implementation","NAMA still under design","Supported",null,"S-62",{"$f":"15/0.84","v":17.857142857142858},31.5,null,15,null,null,16.5,15,0,1.5,1.7,1.7,{"$f":"8*1.7","v":13.6},"Emission reduction worksheets for each unit based on metering","Jobs, private sector leveraging","National government incentives to change. Financial to support for renewables and energy efficiency.",null,null,null,null,"National energy Strategy, National Climate Change Action Plan. www.nama-facility.org/fileadmin/user_upload/pdf/SSRE_NAMA_Warsaw.pdf","Contribute of Chiles pledge of 20% below 2020 emissions"]
["NAMA0014","NS-048",null,"Supporting Implementation of 100% Renewable Electricity by 2020","Asia & Pacific","Pacific","Cook Islands",null,"A renewable energy technology training programme and a new regulatory frameworks for private sector investment in renewable electricity systems.",null,"Renewable Energy Development Division (REDD), Office of the Prime Minister","Energy supply","Renewable energy","Bioenergy, Wind, Solar + EE","2013-01-01",null,"2013-01-12","External support for implementation","Seeking Support",null,null,null,null,201.56390000000002,null,{"$f":"236.3*0.853-AF17","v":201.10465000000002},null,null,0.45924999999999999,0,0,{"$f":"0.55*0.835","v":0.45924999999999999},{"$f":"AI17/8","v":1.2500000000000001E-2},2.5000000000000001E-2,{"$f":"AH17*4","v":0.1},"% electricity from diesel replaced by renewables","Local air pollution reduction, leaks of diesel from storage","Goal for a rapid large scale GHG reduction. Improved regulation.",null,null,null,null,"http://cook-islands.gov.ck/docs/renewableenergy/Cook%20Islands%20Renewable%20Energy%20Chart%20Final%20April%202012.pdf","100% renewable electricity by 2020 with a phased-in implementation plan that achieves 50% by 2015"]
["NAMA0015","NS-009",null,"National Program for Catalyzing Industrial and Commercial Organic Waste Management in Chile","Latin America","South America","Chile",null,"Catalyse the installation of the first facilities for industrial and commercial organic waste management in Chile. The National Program has been designed to address the financial, economic, cultural and social barriers for the development of organic waste management facilities in Chile. ","Five organic waste management facilities to be installed","Ministry of Environment","Industry & Agriculture & Service","Waste","Wine, fruits, crops, salmon, poultry, pigs, pruning, food markets.","2013-01-01",10,"2013-03-08","External support for implementation","Seeking Support",null,null,null,null,160,null,130,"Canadian Government support for NAMA preparation",null,30,30,0,0,{"$f":"AI18/8","v":6},12,{"$f":"AH18*4","v":48},"Biogas/ton waste, energy/ton waste","Jobs created, critical environment episodes","First of its kind project.  The project will be replicated, model for similar projects in other areas of the country.  The project will transform a sector Improvement of regulation.",null,null,null,null,"unfccc.int/cooperation_support/nama/items/6982.php","Contribute of Chiles pledge of 20% below 2020 emissions"]
["NAMA0016","NS-051",null,"Tourism and Waste in the Dominican Republic","Latin America","Caribbean","Dominican Republic","Bavaro-Punta Cana region","Waste management and biomass energy in the tourism sector","Pilot projects for steam & hot water for laundry, swimming pools, kitchens, cooling","National Council for Climate Change and Clean Development Mechanism (NCCCDM)","Tourism","Biomass energy","Shrub clippings & separated waste","2013-01-01",8,"2013-03-22","External support for implementation","A feasibility study is already done",null,null,null,null,370.02699999999999,"Hotels and utilities",58.264000000000003,null,null,311.76299999999998,310,0,1.7629999999999999,{"$f":"AI19/8","v":0.42499999999999999},0.85,{"$f":"AH19*4","v":3.4},null,null,"First of its kind project.  The project will be replicated, model for similar projects in other areas of the country.  The project will transform a sector.  Improvement of regulation.",null,null,null,null,"unfccc.int/cooperation_support/nama/items/6982.php"]
["NAMA0017","NS-047",null,"Low Carbon Climate Resilient Development Strategy","Latin America","Caribbean","Dominica",null,"Implementation of the Low Carbon Climate Resilient Development Strategy","Installing a small generation plant with an output of 5 megawatts. The intention of the Government is to have a 120MW facility constructed along with a submarine interconnection between Dominica and the islands of Guadeloupe and Martinique.","Ministry of Environment, Natural Resources, Physical Planning and Fisheries","Energy supply","Geothermal",null,"2013-01-01",8,"2013-04-02","External support for implementation","Attachment to NAMA: \"Low-Carbon Climate-Resilient Development Strategy 2012-20\"",null,null,null,null,1000,null,500,null,null,500,{"$f":"500-25.5","v":474.5},25,0.5,null,0.2,null,"See attached Low Carbon, and GHG Mitigation Assessment reports","See attached Low Carbon, and GHG Mitigation Assessment reports","Technological innovation. First of its kind project. Goal for a rapid large scale GHG reduction.",20,null,null,null,"unfccc.int/cooperation_support/nama/items/6982.php","Intention to have a 120 MW geothermal plant with cables to Guadeloupe and Martinique."]
["NAMA0018","NR-049",null,"Construction of New Energy Efficient Buildings Based on Energy Efficiency Regulation in Serbia","Europe & Central Asia","Europe","Serbia",null,"New regulation of energy efficiency in buildings","Annual heat energy consumption for new building will decrease from 100 to 60 kWh/m2/year, and for new non-residential building from 110 to 70 kWh/m2/year.","Ministry of Construction and Urbanism","Residential & Service","EE Buildings","New standards","2013-01-01",8,"2013-04-17","For recognition","Regulation into force in September 2012",null,null,null,null,339.45497630331755,null,{"$f":"(285.5+1)/0.844","v":339.45497630331755},null,null,0,0,0,0,0.27500000000000002,{"$f":"2*8.25846/30*8/30*4","v":0.58726826666666665},{"$f":"AH21*8/2","v":2.3490730666666666},null,"Jobcreation, awareness raising of EE","Introduction of technology standards/performance standards.",null,null,null,null,"Regulation on Energy Efficiency in Buildings adopted August 2011 and cam into force September 2012","New residential building < 60 kWh/m2/yr, new non-residentila buildings < 70 kWh/m27yr"]
["NAMA0019","NS-032",null,"Introduction of metering system and billing on the basis of measured consumption in district heating systems in Serbia","Europe & Central Asia","Europe","Serbia",null,"Payment for district heating changed from payment per floor area to heat consumption",null,"Public Utility Company District Heating Plants of Belgrade and Business Association \"Heating Serbia\"","Residential & Service","EE Buildings","Introduction of meters","2013-01-01",4,"2013-04-17","External support for implementation","Several pilot projects ongoing","Supported",null,"S-122",0,251.18483412322277,null,0,null,null,251.18483412322277,{"$f":"212/0.844","v":251.18483412322277},0,0,0.32900000000000001,{"$f":"AG22","v":0.32900000000000001},{"$f":"AG22*8","v":2.6320000000000001},null,"Jobcreation, awareness raising of EE","Improvement of regulation.  Introduction of mandatory energy metering.",null,null,null,null,"In line with The First Energy efficiency Plan of the Republic of Serbia for the period 2010 to 2012"]
["NAMA0020","NS-031",null,"Expansion of existing heating network in Valjevo","Europe & Central Asia","Europe","Serbia","Valjevo","Expansion of distrcit heating network","Closing of 25 old boilers and individual furnaces in 94 residential buildings","City of Valjero","Service","Energy distribution",null,"2013-01-01",5,"2013-04-17","External support for implementation","Technical documentation has been prepared","Supported",null,"S-122",0.96,7.109004739336493,null,0,null,null,7.109004739336493,{"$f":"6/0.844","v":7.109004739336493},0,0,{"$f":"0.25227/30","v":8.4089999999999998E-3},null,null,null,"Local air pollution reduction, jobcreation",null,null,null,null,null,"In line with The First Energy efficiency Plan of the Republic of Serbia for the period 2010 to 2012"]
["NAMA0021","NS-033",null,"Use of Solar energy for domestic hot water production","Europe & Central Asia","Europe","Serbia","Belgrade","Installation of solar water heaters in Belgrade","5000 m2 collectors for 7000 householde supplying 2700 MWh","Public Utility Company District Heating Plants of Belgrade","Energy supply","Solar","Solar hot water","2013-01-01",2,"2013-04-17","External support for implementation","Feasibility study completed in 2008","Supported",null,"S-122",0,1.2440758293838863,null,0,null,null,1.2440758293838863,{"$f":"1.05/0.844","v":1.2440758293838863},0,0,{"$f":"0.1222/20","v":6.11E-3},{"$f":"AG24","v":6.11E-3},{"$f":"AH24*6","v":3.6659999999999998E-2},null,"Jobcreation","First of its kind project.",null,null,null,null,"Energy sector development strategy of the Republic of Serbia by 2015"]
["NAMA0022","NS-050",null,"Replacement and Construction of a New Natural Gas Cogeneration Plant CHP Novi Sad","Europe & Central Asia","Europe","Serbia","Novi Sad","Construction of new energy efficient natural gas- fired cogeneration plant","450 MWe","Public Enterprise Electric Power Industry of Serbia","Energy supply","Fossil fuel switch","New natural gas plant","2014-01-01",2,"2013-04-17","External support for implementation","Feasibility study completed",null,null,null,null,302.13270142180096,null,0,null,null,302.13270142180096,{"$f":"127.5/0.844","v":151.06635071090048},{"$f":"127.5/0.844","v":151.06635071090048},0,{"$f":"36/35","v":1.0285714285714285},1.0285714285714285,{"$f":"AH25*5","v":5.1428571428571423},null,"Folow DNA SD criterias","Technological innovation.",450,null,null,null,"www.merz.gov.rs/en"]
["NAMA0023","NS-034",null,"Thermal Power Project with Capacity and Efficiency Increase II - TTP Nikola Tesla – Unit A3","Europe & Central Asia","Europe","Serbia","Obrenovac","Restoration and modernization of a lignite thermal power plant with capacity increase of 30 MW","30 MWe","Public Enterprise Electric Power Industry of Serbia","Energy supply","EE supply side","Higher efficiency coal power","2013-01-01",2,"2013-04-17","External support for implementation","Idea designand feasibility study under development",null,null,null,null,55.687203791469194,null,0,null,null,55.687203791469194,{"$f":"47/0.844","v":55.687203791469194},0,0,{"$f":"1.4/15","v":9.3333333333333324E-2},9.3333333333333324E-2,{"$f":"AH26*6","v":0.55999999999999994},null,"Folow DNA SD criterias","None",30,null,null,null,"www.merz.gov.rs/en"]
["NAMA0024","NS-039",null,"Thermal Power Project with Capacity and Efficiency Increase I - TTP Nikola Tesla – Unit B2","Europe & Central Asia","Europe","Serbia","Obrenovac","Restoration and modernization of a lignite thermal power plant with capacity increase of 47 MW","47 MWe","Public Enterprise Electric Power Industry of Serbia","Energy supply","EE supply side","Higher efficiency coal power","2015-01-01",4,"2013-04-17","External support for implementation","Idea designand feasibility study under development",null,null,null,null,131.51658767772511,null,0,null,null,131.51658767772511,{"$f":"111/0.844","v":131.51658767772511},0,0,{"$f":"5.3/15","v":0.35333333333333333},0.35333333333333333,{"$f":"AG27*2","v":0.70666666666666667},null,"Folow DNA SD criterias","None",47,null,null,null,"www.merz.gov.rs/en"]
["NAMA0025","NS-040",null,"Construction of a Super-critical Lignite Power Plant TTP Kostolac B","Europe & Central Asia","Europe","Serbia","Kostalac","Kostalac B (now 281 MW) expanded with new lignite unit of 600 MW","New unit have efficiency of 40.8% compare to normal lignite of 33.5%","Public Enterprise Electric Power Industry of Serbia","Energy supply","EE supply side","Higher efficiency coal power","2015-01-01",6,"2013-04-17","External support for implementation","Pre-feasibility study and General design completed",null,null,null,null,1130.3317535545025,null,0,null,null,1130.3317535545025,0,{"$f":"954/0.844","v":1130.3317535545025},0,{"$f":"56/40","v":1.4},1.4,{"$f":"AH28*1","v":1.4},null,"Folow DNA SD criterias","Technological innovation.",600,null,null,null,"www.merz.gov.rs/en"]
["NAMA0026","NS-041",null,"Energy Efficiency Improvements in Public Buildings: 23 schools and 26 hospitals – Serbian Energy Efficiency Project (SEEP)","Europe & Central Asia","Europe","Serbia",null,"Sectoral programm: Refurbishment of 23 schools and 26 hospitals.","Upgrading the building envelope (e.g. insulating walls, roofs, ceiling, basement; replacing windows; etc.), and upgrading the heating system (equipment and controls – both central plant and local terminal units).","Ministry of Energy, Development and Environment Protection","Service","EE Service","Energy efficient Schools and Hospitals","At accept",4,"2013-04-17","External support for implementation","Seeking Support",null,null,null,null,14.454976303317535,null,0,null,null,14.454976303317535,{"$f":"12.2/0.844","v":14.454976303317535},0,0,8.3300000000000006E-3,8.3300000000000006E-3,{"$f":"AH29*6","v":4.9980000000000004E-2},null,"Experience and awareness raising","First of its kind project. Increased awarenes on Climate Change in governmental/municipal institutions.",null,null,null,null,"National Energy Efficiency Action Plan of the Republic of Serbia (NEEAP)"]
["NAMA0027","NS-035",null,"Introduction 1000 MW of small biomass boilers in Serbia","Europe & Central Asia","Europe","Serbia",null,"Sectoral programme: Installation of 1000 MW of new biomass boilers for all residential, commercial and industrial sectors.","Residential, commercial and industrial boilers fueled by pellets/wood chips/agricultural waste","Ministry of Energy, Development and Environment Protection","Energy supply","EE supply side","Biomass power plants","2015-01-01",4,"2013-04-17","External support for implementation","JICA supported NAMA proposal.",null,null,null,null,296.20853080568719,null,0,null,null,296.20853080568719,{"$f":"250/0.844","v":296.20853080568719},0,0,0.41,0.41,{"$f":"AH30*3","v":1.23},null,"Local environment, rural economy, local employment","Financial support for low carbon technologies. The project will transform a sector.",1000,null,null,null,"National Energy Efficiency Action Plan of the Republic of Serbia (NEEAP)"]
["NAMA0028","NS-046",null,"Improvement of old residential buildings envelope (exterior doors, windows and thermal insulation) in Serbia","Europe & Central Asia","Europe","Serbia",null,"The objective of this project is rehabilitation of about 10% of the existing residential buildings in Serbia that were built in the period from 1950’s to 1980’s without any thermal insulation (10 million m2). ","Thermal insulation, partitions to unheated spaces, roofs, ceilings, etc.  Replacement of windows. Installing new five-chamber PVC frames, double glazing, low-emissivity glass, filled with argon gas.","Ministry of Construction and Urbanism","Residential","EE households","Thermal insulation of old buildings","2013-01-01",8,"2013-04-17","External support for implementation","Seeking Support",null,null,null,null,857.20379146919436,null,{"$f":"(723.48-578.784)/0.844","v":171.44075829383891},null,null,685.76303317535542,{"$f":"578.784/0.844","v":685.76303317535542},0,0,5.04E-2,{"$f":"AG31","v":5.04E-2},{"$f":"AH31*4","v":0.2016},null,"Local environment, rural economy, local employment","Financial support for low carbon technologies. The project will transform a sector.",0,null,null,null,"The new Regulation on Energy Efficiency in Buildings adopted in August 2011 and came into force in September 2012"]
["NAMA0029","NS-036",null,"Rehabilitation of arterial roads in Serbia","Europe & Central Asia","Europe","Serbia",null,"Improved pavement on 324 km road.","An uneven road can increase fuel consumption by up to 12% relative to an even road. A rough macrotexture may increase fuel consumption by 7% relative to a very smooth macrotexture. Fuel consumption for a car may be influenced as much as 12% by road surface characteristics.","The public enterprise \"Roads of Serbia\"","Transport","Improved roads","Arterial roads improved","2014-01-01",6,"2013-04-17","External support for implementation","Seeking Support",null,null,null,null,175.88023210663508,null,{"$f":"139.328/0.844","v":165.08056872037915},null,null,10.799663386255924,{"$f":"9.114915898/0.844","v":10.799663386255924},0,0,2.617,{"$f":"AG32","v":2.617},{"$f":"AG32*3","v":7.851},null,"Economical development, job creation, education and awareness raising","National government incentives to change/disincentives to no change.",null,null,null,null,"COPERT 4 calculation"]
["NAMA0030","NS-037",null,"Revitalization of the Existing Small Hydropower Plants and Construction of New Small Hydropower Plants (SHPPs)","Europe & Central Asia","Europe","Serbia",null,"Construction of small hydropower plants","Phase 1: construction of 9 plants in existing places. Phase 2: constuction of 3 plant at new places","Public Enterprise Electric Power Industry of Serbia","Energy supply","EE supply side","Hydro power","2013-01-01",4,"2013-04-17","External support for implementation","Prefeasibility study completed for phas 1, phase 2 is in technical documentation preparation",null,null,null,null,66.113744075829388,null,0,null,null,66.113744075829388,{"$f":"55.8/0.844","v":66.113744075829388},0,0,{"$f":"4.1/40","v":0.10249999999999999},{"$f":"4.1/40","v":0.10249999999999999},{"$f":"AG33*3","v":0.3075},null,"Local environment, local employment, awareness raising","The project will be replicated, model for similar projects in other areas of the country.",30.4,{"$f":"108300/AM33","v":3562.5},null,null,"www.merz.gov.rs/en ; http://192.168.16.144/Eng/Article.aspx?lista=Sitemap&id=14"]
["NAMA0031","NS-021",null,"Rehabitation Of Al‐Akaider Landfill","Middle-East","Fertile Cresent","Jordan",null,"Investment in infrastructure",null,"Ministry of Environment","Waste","Landfill gas","Landfill power",null,{"$f":"70/12","v":5.833333333333333},"2013-06-05","External support for preparation","Seeking grant from EIB through its Horizon 2020/MEHIP_PPIE",null,null,null,null,0.75,null,0.75,null,null,0,null,null,null,null,null,null,null,null,"None",null,null,null,null,"National strategy to improve the MSWM\nsector in Hashemite Kingdom of Jordan , funded of RLDP \" Rejional and Local Development Project"]
["NAMA0032","NS-023",null,"Fuels and Emissions Savings","Middle-East","Fertile Cresent","Jordan",null,"Electricity generation from Wind energy sources",null,"Ministry of Environment","Energy supply","Wind","Wind",null,null,"2013-06-05","External support for preparation","Request for support for preparation and capacity building",null,null,null,null,1.25,null,null,null,null,1.25,0.5,0.5,0.25,null,null,null,null,null,"Goal for a rapid large scale GHG reduction",null,null,null,null,"Renewable Energy and Energy Efficiency Law No. 13 for the Year 2012‐ Direct Proposals Policy Statement‐ Jordan Energy Sector Strategy 2008‐2020","10% renewable share by the year 2020 through uilding 2000 MW of renewable energy power plants (Wind, Solar, Waste to Energy)"]
["NAMA0033","NS-024",null,"Fuels and Emissions Savings","Middle-East","Fertile Cresent","Jordan",null,"Electricity generation from Solar energy sources",null,"Ministry of Environment","Energy supply","Solar","Solar",null,null,"2013-06-05","External support for preparation","Request for support for preparation and capacity building",null,null,null,null,1.75,null,null,null,null,1.75,1,0.5,0.25,null,null,null,null,null,"Goal for a rapid large scale GHG reduction",null,null,null,null,"Renewable Energy and Energy Efficiency Law No. 13 for the Year 2012‐ Direct Proposals Policy Statement‐ Jordan Energy Sector Strategy 2008‐2020","10% renewable share by the year 2020 through uilding 2000 MW of renewable energy power plants (Wind, Solar, Waste to Energy)"]
["NAMA0034","NS-025","NS-026","Improvement of Energy Efficiency in the Jordanian Water Sector (IEE)","Middle-East","Fertile Cresent","Jordan",null,"Prepare plan to reduce the specific energy consumption per m3 of produced water (see NS-26)","Pumping facilities, wellfields, booster stations, the water supply network and other water infrastructure","Ministry of Environment","Water","EE service","Water pumping",null,{"$f":"3/12","v":0.25},"2013-06-05","External support for preparation","Request for support for preparation and capacity building",null,null,null,null,0.21149999999999999,null,null,null,null,0.21149999999999999,null,{"$f":"0.15*1.41","v":0.21149999999999999},"100 man-hours",null,null,null,null,null,"The project will be replicated, model for similar projects in other areas of the country",null,null,null,null,"Water Strategy \"Water for Life\"; National Energy Strategy","The Water Authority of Jordan is the largest electricity consumer in the country , using about 15% of Jordan's national energy production."]
["NAMA0035","NS-027",null,"National appropriate mitigation action (NAMA) for industrial sector","Middle-East","Fertile Cresent","Jordan",null,"Prepare action plans for the most feasible GHG reduction actions in the industrial sector through selection of industries by benchmarking","The most feasible industries will be selected","Ministry of Environment","Industry","EE industry","Several",null,{"$f":"30/12","v":2.5},"2013-06-05","External support for preparation","Request for support for preparation and capacity building",null,null,null,null,0.95,null,null,null,null,0.95,0.85,null,0.1,1,1,null,"Prepare MRV for 5 of the most feasible actions.",null,"SD goal incentivice the transition.",null,null,null,null,"Energy strategy, water strategy, national agenda, second national communication, etc"]
["NAMA0036","NS-028",null,"National appropriate mitigation action (NAMA) for national domestic waste management","Middle-East","Fertile Cresent","Jordan",null,"Prepare national strategy for domestic waste","The strategy will consider the domestic waste management from generation to final disposal","Ministry of Environment","Waste","Landfill gas & methane avoidance","Solid waste & wastewater",null,{"$f":"18/12","v":1.5},"2013-06-05","External support for preparation","Request for support for preparation and capacity building",null,null,null,null,0.3,null,null,null,null,0.3,0.3,null,null,null,null,null,null,null,"Goal for a rapid large scale GHG reduction",null,null,null,null,"National agenda, second national communication, etc","10% renewable share by the year 2020 through uilding 2000 MW of renewable energy power plants (Wind, Solar, Waste to Energy)"]
["NAMA0037","NS-026","NS-025","Improvement of Energy Efficiency in the Jordanian Water Sector (IEE)","Middle-East","Fertile Cresent","Jordan",null,"Reduce the specific energy consumption per m3 of produced water (see NS-25)","Pumping facilities, wellfields, booster stations, the water supply network and other water infrastructure","Ministry of Environment","Water","EE service","Water pumping","2014-01-01",10,"2013-06-05","External support for implementation","This NAMA will upscale existing activities",null,null,null,null,126.9,null,{"$f":"50*1.41","v":70.5},null,null,56.4,{"$f":"40*1.41","v":56.4},null,null,1.1000000000000001,1.1000000000000001,null,null,null,"The project will be replicated, model for similar projects in other areas of the country",null,null,null,null,"Water Strategy \"Water for Life\"; National Energy Strategy","The Water Authority of Jordan is the largest electricity consumer in the country , using about 15% of Jordan's national energy production."]
["NAMA0038","NS-029",null,"Samra Thermal Power Station ‐ Phase‐III Add‐On Combined Cycle","Middle-East","Fertile Cresent","Jordan",null,"Combined cycle power plant","Approximately 140 MW Steam Turbine Generator add-on. Heat Recovery Steam Generators and all  systems to utilize the existing Gas turbines exhust temperature to generate power with zero fuel addition. ","Ministry of Environment","Energy supply","EE supply side","New natural gas plant","2013-01-01",3,"2013-06-05","External support for implementation",null,null,null,null,null,158.57035100000002,"Arab & Kuwaiti funds loans",{"$f":"158.570351-AD41","v":134.784829},null,null,23.785522,23.785522,null,null,{"$f":"301.873*1.42/1000","v":0.42865966},{"$f":"AG41","v":0.42865966},null,null,null,"None.",140,null,null,null,"42% larger than the CDM project:Samra 300 MW combined cycle project (ref=4958)"]
["NAMA0039","NS-044",null,"The Zarqa River Basin Industrial Waste Water Treatment Plant and Energy Plant (ZIWWTEP)","Middle-East","Fertile Cresent","Jordan",null,"Reuse of industrial wastewater (not potable), thereby reducing energy consumption for water and groundwater pumping.","1.Pretreatmen line to reduce COD & BOD, 2. aerobical biological stage, 3.polishing water for its intended use.","Ministry of Environment","Waste","Methane avoidance","Waste water","2014-01-01",null,"2013-06-12","External support for implementation","Prefeasibility study exists",null,null,null,null,null,null,null,null,null,null,null,null,null,1.3759E-2,{"$f":"AG42","v":1.3759E-2},null,null,"3 social, 5 economical, and 7 environmental indicators","Technological innovation.",null,"1805 MWh",null,null,"Refer to the CDM methodologie ACM14 & AM20"]
["NAMA0040","NS-052",null,"NAMAs in Cement/Co‐Processing and Waste Sector","Latin America","Caribbean","Dominican Republic",null,"Reuse of alternative materials from municipal and industrial wastes in cement production","Clinker will be replaced by recycled material","National Council for Climate Change and Clean Development Mechanism (NCCCDM)","Waste","Cement","Clinker replacement","2013-01-01",6,"2013-10-17","External support for implementation","25 employees have been trained",null,null,null,null,{"$f":"Z43+AB43+AC43","v":5.8214740000000003},null,null,null,null,{"$f":"SUM(AD43:AF43)","v":5.8214740000000003},{"$f":"5.821474","v":5.8214740000000003},null,null,0.8,0.8,null,"A MRV will be set up at the end of the project","Pollution avoided on the island, shore and sea. Several other indicators mentions","Milestones/Key Performance Indicators. Improved regulation.",null,null,null,null,"Reference to several national policies"]
["NAMA0041","NS-068",null,"Emission Reduction Actions Program (NAMA) in Natural Gas Processing, Transport and Distribution System, through fugitive emission reduction","Latin America","North America","Mexico",null,"Reduction of CH4 emission by minimization and/or elimination of fugitive and black carbon emissions in the process, transport and distribution of national gas.","Wet by dry seals substitution, Black carbon emission reductions through the installation of pilot flame lighter electronic devices at the natural gas burners.","Petróleos Mexicanos (PEMEX)","Energy supply","Fugitive","Natural gas pipelines","2014-01-01",20,"2013-11-01","External support for implementation","Prefeasibility study made.",null,null,null,null,47.864999999999995,null,6.5000000000000002E-2,"Cost of NAMA preparation from UK embassy in Mexico",null,47.8,47.8,0,0,{"$f":"2.863/20","v":0.14315},{"$f":"AG44","v":0.14315},{"$f":"AG44*7","v":1.0020500000000001},"AM23 used","Economical savings, additional investment and rimproved risk management for natural gas","Milestones/Key Performance Indicators.",null,null,null,null,"\"EMISSION REDUCTION ACTIONS PROGRAM (NAMA) IN NATURAL GAS PROCESSING, TRANSPORT AND DISTRIBUTION SYSTEMS, THROUGH FUGITIVE EMISSION REDUCTION\""]
["NAMA0042","NS-073",null,"Cogeneration in the mexican Oil and Gas sector","Latin America","North America","Mexico",null,"Reduction of fugitive CH4 emissions in the process, transport and distribution of national gas by cogeneration projects in the Oil and Gas sector in Mexico",null,"Petróleos Mexicanos (PEMEX)","Energy supply","Fugitive","Cogeneration",null,4,"2013-11-05","External support for preparation","The preparation stage of the NAMA has begun by documenting all the required information",null,null,null,null,7.8E-2,"PEMEX",{"$f":"0.078-0.065","v":1.2999999999999998E-2},null,null,6.5000000000000002E-2,6.5000000000000002E-2,0,0,null,null,null,null,null,"None.",null,null,null,null,"The cost estimate is based on a former cogeneration projet at the \"Cangrejera\" Complex. The cost of the full project for 3500 MW is 1050 Million US$"]
["NAMA0043","NS-083",null,"NAMA for accelerated geothermal electricity development in Kenya","Africa","East Africa","Kenya",null,"Support to build 820 MW geothermal power as part of the National Climate Change Action Plan (NCCAP) from 2013. Including Financial and Technical capacity development programmes","The NAMA will support a National Geothermal Capacity Building Program that undertakes training, research, mapping, planning and database development.","Ministry of Energy and Petroleum","Energy supply","Geothermal","Geothermal electricity","2014-01-01",15,"2014-02-21","External support for implementation","Based upon Kenya: Vision 2030",null,null,null,null,4538.3,null,{"$f":"4250","v":4250},null,null,288.3,288.3,0,0,null,3.77,null,"Number of private sector firms engaged ","GDP growth through lower energy prices and increased employment","Risk minimization instrument introduced.  Learning from ongoing policies and actions. The project will transform a sector.",820,null,null,null,"Government of Kenya (2007). Kenya: Vision 2030. Nairobi: Ministry of Planning and National Development and the National and Economic Council, Office of the Prime Minister. http://www.vision2030.go.ke"]
["NAMA0044","NS-085",null,"Adaptive Sustainable Forest Management in Borjomi-Bakuriani Forest District","Europe & Central Asia","Central Asia","Georgia"," Samtskhe-Javakheti","Capacity building, best practice examples, on-site training and participatory pilot activities in the Borjomi-Bakuriani region as basis for upscaling sustainable forest management to the national level","The restoration of 45.000 hectares of forest will substantially enhance carbon sequestration and storage.","National Forestry Agency of the Ministry of Environment and Natural Resources Protection of Georgia","Forestry","REDD+","Forest Management","2014-01-01",2,"2014-03-17","External support for implementation","In December 2013, the Georgian parliament has approved a new vision and guiding policy for the forest sector","Supported",null,"S-99",{"$f":"AD47","v":1.9404920000000001},2.5357300952380952,null,{"$f":"0.5/0.84","v":0.59523809523809523},null,null,1.9404920000000001,1.9404920000000001,null,null,null,null,null,null,null,"The project will be replicated, model for similar projects in other areas of the country.",null,null,null,null,"The complete title of the project is: Adaptive Sustainable Forest Management in Borjomi -A model for improved sustainable management of forests, adaptation to climate change, promotion of co-benefits (such as biodiversity protection, poverty alleviation and improving the livelihood and resilience of local communities) "]
["NAMA0045","NS-088",null,"Energy Efficient Lighting in Residential, Commercial, Industrial, and Outdoor Sectors of Pakistan","Asia & Pacific","Southern Asia","Pakistan",null,"Development and enforcement of a national Energy Efficient lighting strategy, energy codes and standards, Minimum Energy Performance Standards and MRV system","Establishment of a Revolving Loan Fund for future efficient lighting projects and awareness campaigns in the public on transition to EE lighting ","National Energy Conservation Centre (ENERCON)","Residential & Service","EE households & service","Efficient lighting","2014-01-01",7,"2014-03-19","External support for preparation",null,null,null,null,null,8.3333333333333339,null,null,null,null,8.3333333333333339,{"$f":"7/0.84","v":8.3333333333333339},null,null,null,1.97,null,null,"Integrated waste management system for CFLs and other mercury added products","Introduction of mandatory labeling. Information campain performed. Financial support for low carbon technologies",null,null,null,null,"The proposed NAMA activities are in line with the National Energy Conservation Policy, 2006 and National Climate Change Policy, 2012 of Pakistan."]
["NAMA0046","NS-090",null,"National Energy Efficient Lighting Program in Mongolia","Asia & Pacific","East Asia","Mongolia",null,"The grant will be used to create a revolving fund in support of energy efficiency in Mongolia. The outlined project will save 100,306 MWh in annual electricity consumption (=3.23 million Euro).","LEDs & CFLs in residential, industrial,service and outdoor sectors. ","Climate Change Coordination Office (CCCO) in the Ministry of Environment and Green Development","Residential & Service","EE demand side","Efficient lighting","2015-01-01",5,"2014-04-03","External support for implementation","Mentioned in the National Action Programme on Climate Change (NAPCC) approved by the Parliament in 2000 and updated in 2011",null,null,null,null,7.5,null,null,"Joint Crediting Mechanism (JCM)",0.5,7,7,null,null,null,{"$f":"100.306*1.103/1000","v":0.110637518},{"$f":"AH49*5/2","v":0.27659379500000003},null,"Jobs, public awareness, create business opportunities to private enterprises.","Introduction of mandatory labeling. Information campain performed. Financial support for low carbon technologies.",null,null,null,null,"“Mongolia power sector” presented by Ministry of Energy Mongolia; “Global Lighting Energy Bill”; “Appendix II of Copenhagen Accord”"]
["NAMA0047","NS-089",null,"Smart Street Lighting Initiative","Asia & Pacific","Southeast Asia","Indonesia",null,"Introduction of metering for street light. The NAMA will support cities to overcome their incremental cost when investing into more efficient technologies. ","The NAMA aims to start implementation during 2014 in up to four small and medium-sized cities, before expanding to further 18 cities by 2016 and in 15 cities until 2020. ","Ministry of Energy and Mineral Resources (MEMR)","Service","EE service","Street lighting",null,6,"2014-05-15","External support for implementation","The NAMA is in line with several provincial mitigation action plans. Domestic financing in the form of low interest loans.",null,null,null,null,294,"Government investment facility (PIP)",{"$f":"294-AC50","v":263.5},null,null,30.5,19,11.5,0,null,0.42499999999999999,null,"If no meters are installed the approved CDM methodology AMS-II.L. will be used"," Job creation, improved public activity for men and women, reduction in traffic accidents, offers opportunities for local community to conduct business and participate in civic life in the evening.","Introduction of mandatory energy metering. The project will transform a sector. Financial support for low carbon technologies.",null,null,1.85,null,null,"The National Energy Conservation Master Plan (RIKEN) that calls for a decrease in energy intensity by an average of 1% per year until 2025. \n"]
["NAMA0048","NS-095",null,"Nationally Appropriate Mitigation Actions for low-carbon end-use sectors in Azerbaijan","Europe & Central Asia","Central Asia","Azerbaijan",null,"Support the national oil company SOCAR in the development and implementation of NAMAs for energy efficiency and renewable energy in buildings and transportation.","Reduction of flaring and Improvement of energy performance in new and existing residential, service and public buildings and in transportation (passenger cars, trucks, buses, special purpose vehicles). ","UNDP","Residentials & transport","Demand-side EE",null,"2015-01-01",1.5,"2014-05-26","External support for preparation","SOCAR’s Climate Change Strategy is being implemented","Supported",null,"S-63",0.1,0.1,null,null,null,null,0.1,0.1,0,0,null,null,null,null,null,"The project will transform a sector",null,null,null,null,"SOCAR’s Climate Change Strategy","SOCAR a very ambitious voluntary commitment to reduce its own emissions by 40% or an equivalent of aggregate 20 MtCO2 by the year 2020, spelled out in the SOCAR’s Climate Change Strategy adopted by the Company’s Board in December 2010"]
["NAMA0049","NS-108",null,"NAMA for New Residential Buildings","Latin America","North America","Mexico",null,"This NAMA will improve electrical, fossil fuel, and water efficiency in the residential sector by a ‘whole house’ approach. From this perspective, efficiency benchmarks are set for total primary energy demand based on building type and climate.","The improvements are achieved through deployment of eco-technologies, proliferation of design improvements, and utilization of efficient building materials.","La Secretaría de Desarrollo Agrario, Territorial y Urbano (SEDATU) ","Residential","EE households & service","EE new buildings","2014-07-01",5,"2014-06-05","External support for implementation","The NAMA project has been developed by the Mexican National Housing Commission (CONAVI) with support from GIZ on behalf of BMU.","Supported",null,"S-62",{"$f":"14/0.84","v":16.666666666666668},895.3,null,null,null,null,895.3,{"$f":"895.3-72.1","v":823.19999999999993},72.099999999999994,0,null,1.2,null,"For each activity gas, water and electricity consumption, room temperature, specific temperature in walls, floor and ceiling will be measured","Comfort for homeowners, Access to clean energy, Capacity building in sustainability for developers and homeowners, Economic savings, green jobs, Air Quality improvements and efficient Land Use.","Introduction of technology standards/performance standards. Introduction of mandatory energy labeling.",null,null,null,null,"www.nama-facility.org/fileadmin/user_upload/pdf/NAMA_Facility_factsheet_Mexico.pdf"]
["NAMA0050","NS-111","NAMA0084","NAMA for Sustainable Housing Retrofit","Latin America","North America","Mexico",null,"This NAMA will improve electrical, fossil fuel, and water efficiency in the residential sector by a ‘whole house’ approach. From this perspective, efficiency benchmarks are set for total primary energy demand based on building type and climate.","The improvements are achieved through deployment of eco-technologies, proliferation of design improvements, and utilization of efficient building materials.","La Secretaría de Desarrollo Agrario, Territorial y Urbano (SEDATU) ","Residential","EE households & service","EE existing buildings","2014-07-01",1,"2014-06-08","External support for implementation",null,"Resubmitted","as NAMA0084",null,null,0.878,null,null,null,null,0.878,0.752,0.126,null,null,0.5,null,"For each activity gas, water and electricity consumption, room temperature, specific temperature in walls, floor and ceiling will be measured","Comfort for homeowners, Access to clean energy, Capacity building in sustainability for developers and homeowners, Economic savings, green jobs, Air Quality improvements and efficient Land Use."]
["NAMA0051","NS-112",null,"Urban NAMA","Latin America","North America","Mexico",null,"The objective of this NAMA is to expand the scope of the New Residential Buildings NAMA to achieve higher energy efficiency and GHG mitigation.","Analyse of the potential to reduce housing programs environmental impacts and relation with other elements of the urban environment, such as water consumption, sewage, waste management and street lighting. ","La Secretaría de Desarrollo Agrario, Territorial y Urbano (SEDATU) ","Residential & Service","EE households & service","EE new buildings","2014-07-01",1,"2014-06-30","External support for preparation",null,null,null,null,null,0.9,null,0.9,null,null,0,null,null,null,null,null,null,null,null,"No information"]
["NAMA0052","NS-118",null,"Energy Efficiency in Public Sector","Latin America","Caribbean","Dominican Republic",null,"Implementation of energy efficiency measures identified by audits carried out by National Energy Commission (CNE). It has already has boosted the performance of at least 14 energy audits. This activity will be doubled.","Lighting, air conditioning systems, technology information and electric equipment will be covered. Public agencies/institutions consume 7% of energy consumption of the country. ","National Council for Climate Change and Clean Development Mechanism (NCCCDM)","Service","EE service","Public buildings","2014-07-01",3,"2014-08-01","External support for implementation","The Government is currently undertaking capacity building efforts but requires support to strengthen its capacity in undertaking new energy efficient audits and the respective monitoring, reporting and verification",null,null,null,null,145.30000000000001,"Some of the costs will be covered by the government",145.30000000000001,null,null,0,null,null,null,5.8000000000000003E-2,{"$f":"AG55","v":5.8000000000000003E-2},null,null,null,"Information campain performed.",null,null,null,null,"National PRogram on Energy Efficiency: http://eficienciaenergetica.gob.do/index.php/plan-nacional. http://www.cne.gob.do/app/do/marco_leyes.aspx\nhttp://www.cne.gob.do/app/do/marco_leyes.aspx\n"]
["NAMA0053","NS-121",null,"Development of a feed-in tariff NAMA for renewable energy","Africa","North Africa","Sudan",null,"Development of a feed-in tariff and associated electricity generation costs to allow geographical differentiation of the FiT tariff as well as the NAMA structure around the FiT (e.g. institutional arrangements, capacity development, MRV). ","Designing a carbon/climate finance 'window' so standard FiT payments can be augmented by additional premium payments that do not directly burden the Government of Sudan. Undertaking a technical review of the FiT after 2-3 years. ","Ministry of Water Resources & Electricity (MWRE)","Energy supply","Renewable energy","Electricity generating","2015-01-01",5,"2014-08-25","External support for implementation","The NAMA is being developed within a broader UNDP-GEF project, \"Promoting Utility-Scale Power Generation from Wind Energy\" ","Supported",null,"S-63",3.5,500,null,null,null,null,500,300,200,null,null,null,null,null,null,"Feed-in Tariffs with a purchase obligation, stable tariff over a long period of time.",null,null,null,null,null,"Sudan has set itself the target to increase electrification to 75-80% by 2020. The Renewable Energy Master Plan (REMP) from 2005 recommends the development of biomass to hydro, solar, geothermal, and large-scale wind power."]
["NAMA0054","NS-126",null,"Santiago Transport Green Zone (STGZ)","Latin America","South America","Chile","Santiago","The STGZ is comprised of four specific initiatives to promote low carbon emission transport modes that would be implemented within a defined area which includes the Historic Triangle of the city center of Santiago. It is highly replicable in other cities.","1) Promotion of zero and low emission vehicles in taxi fleets, municipality fleet and charging stations; 2) Incorporation of zero and low emission buses; 3) 6 km of new bicycle lanes, a pilot program for a bicycle sharing system; 4) New pedestrian streets, exclusive lanes for ZLEV buses and bicycle parking.\n","Municipality of Santiago","Transport","Low carbon emission transport modes ","Electric buses, biking, pedestrian streets","2015-01-01",2,"2014-09-11","External support for implementation","One of the main conclusions of the multistakeholder process to develop the STGZ is that it must be considered as a pilot project with a vast potential for redefining the urban transportation model with a new focus on integrated and sustainable transport.",null,null,null,null,17.600000000000001,null,8,null,null,9.6,9.6,0,0,null,{"$f":"AI57/10","v":0.14299999999999999},1.43,"Profits for commercial shops placed in the new pedestrian and semi-pedestrian streets. Obesity Index variation.",null,"SD goal or vision. The project will transform a sector.",null,null,null,null," “Design of a Program for Technological Improvement of Buses in the Public Transport System of Santiago”","In 10 years the project can be upscaled to a GHG reduction of 1.43 MtCO2 in Santiago to include 15% of taxi fleet (3,525 units replaced) and 15% of Transantiago bus fleet (975 units replaced)."]
["NAMA0055","NS-124",null,"Nationally Appropriate Mitigation Actions for Low-carbon Urban Development in Kazakhstan","Europe & Central Asia","Central Asia","Kazakhstan",null,"The Project supports the identification, design, and implementation of NAMAs in the urban sector. Improve the capacity of municipalities to carry out integrated municipal planning, make targets and prioritize urban mitigation actions.","Piloting of an urban NAMA in the Prigorodnoye district of Astana through investments in modernization and upgrading of the urban infrastructure, with the objective of achieving the country’s voluntary GHG emission reduction target.","UNDP","Residential & transport","Demand-side EE","Low carbon urban planning","2015-01-01",1.5,"2014-10-16","External support for preparation","Following the NAMA development, the Global Environment Facility will contribute 5.93 mln US$ for the implementation of the NAMA. ","Supported",null,"S-63",5.93,0.15,null,null,null,null,0.15,0.15,null,null,null,null,null,null,null,"Enhanced capabilities of actors. First of its kind project.",null,null,null,null,"The Energy Saving Program-2020 (Program 2020) \nThe Comprehensive Energy Saving Plan for 2012-2015 \nProgramme on Modernization of Housing and Utility Sector for 2011-2020\nNational Program for Modernization (NPM) for Residential and Communal Sector for 2011-2020 "]
["NAMA0056","NS-144",null,"Energy Efficient Public Buildings and Housing in Armenia","Europe & Central Asia","Central Asia","Armenia",null,"For public buildings provide support to financing, policy and strategies, regulatory framework, including enforcement, capacity building and awareness raising. Energy efficient design with incorporation of passive solar, efficiency upgrades to building envelope, heating /ventilation/cooling system, and renewable energy applications in the buildings.","1) Investment grants to cover incremental investment costs for energy efficiency in new construction and rehabilitation; 2) New investment program for energy efficient rehabilitation/construction of public buildings, through leveraging low interest concessional loans; 3) Technical support and capacity building.","Ministry of Urban Development, Urban Development Projects Implementation Unit","Buildings","Demand-side EE","New buildings and rehabilitations","2015-01-01",6,"2014-10-26","External support for implementation","The full costs are additional to the national core financing of the planned investment programs addressed in NAMA component 1 in the period of 2015-2020 (about USD 200 million) and financing of new investment program addressed in NAMA component 2.",null,null,"UNDP support for preparation by Mark van Wees of this NAMA (2014)",null,224.5,"State budget",200,null,null,24.5,24.5,null,null,null,0.1,null,null,"Sustainable technology transfer, employment generation, development of regional and local economies, services quality improvement, capacity development, reduction (energy) poverty. ","Improvement of regulation.  Information campain performed. Financial support for low carbon technologies. Actors create networks for low carbon transition.",null,null,null,null,"Copenhagen Accords and Action Plan on implementation of the UNFCCC commitments; Law on Energy Saving and Renewable Energy and the Law on Urban Development; National Strategy on Developing Social Housing Stock for a period of 2014-2025; Strategic Program for Sustainable Development for 2014-2025. "]
["NAMA0057","NS-127",null,"Colombia TOD NAMA","Latin America","South America","Colombia",null,"Transit Oriented Development is an energy efficient, high quality-of-life urban form that combines walkable public spaces, mixed use buildings and public transit in compact neighborhoods within a city. Focus on a small number of pilots (types, city sizes) that can be replicated. ","The goal of this NAMA is to trigger transformational change of the urban template of Colombian cities, because destinations and origins are brought closer together and non-motorized and transit modes are easier to use. ","FINDETER Financiera del Desarrollo, and CIUDAT","Transport","Bus Rapid Transit","Compact cities, where non-motorized and transit modes are easier to use. ","2015-01-01",4,"2014-10-26","External support for implementation","There will be an institutional structure in place for continuity of CIUDAT functions at the end of the NAMA facility funding period","Supported",null,"S-62",18.5,19,null,null,null,null,19,19,null,null,null,null,null,"Number of TOD neighborhoods initiated in Colombia both inside and outside pilot cities. Per capita GHG emissions difference between TOD and non-TOD neighborhoods.","Transport costs per person ","Political vision and leadership.The project will transform a sector. National government incentives to change/disincentives to no change. Multilevel interaction.",null,null,null,null,"Colombian Low Carbon Development Strategy (CLCDS). Colombia’s CTF Investment Plan, approved in 2010, includes US$100 million of concessional loan resources for sustainable urban transport. FINDETER has a Sustainable and Competitive Cities program. www.nama-facility.org/fileadmin/user_upload/pdf/Colombia_2013_15_Nov_Side_event_NAMA_Facility.pdf"]
["NAMA0058","NS-134",null,"Supporting Mechanisms for Promoting Distributed Generation (Net Metering, Wheeling, Banking etc.) in Pakistan to put 3 GW Alternative and Renewable Energy (ARE) Projects in next 7 years.","Asia & Pacific","Southern Asia","Pakistan",null,"This NAMA Support project will enable in establishing a conducive regulatory regime for distributed renewable generation in the country in order to put up 3 GW installed capacity in next 10 years.","Establishing financing mechanisms for Distributed Generation options, and a Guarantee Fund for attracting commercial banks to finance at at consumer end level. Detailed documentation (legislative document, operating procedures, guidelines, implementation mechanisms etc.) will be developed","Alternative Energy Development Board, Ministry of Water and Power","Energy supply","More renewable energy","Establishing financing mechanisms","2015-01-01",3,"2014-10-31","External support for preparation","Since 2011, the GoP has established an Alternative Energy Development Fund (AEDF). This is expected to have the capacity to effectively handle the RLF.",null,null,null,null,18.835705000000001,null,null,null,null,18.835705000000001,7.6882279999999996,11.147477,null,null,2.6,null,"Potential of Transformational Change: This NAMA can trigger a large increase in Renewable power generation, ",null,"Improvement of regulation.Financial support for low carbon technologies . Feed-in Tariffs with a purchase obligation, stable tariff over a long period of time. Risk minimi-zation instrument introduced.",3000,null,null,null,"National Climate Change Policy approved in 2012 outlines goals and strategies to achieve targets in the Adaptation and Mitigation sectors. Policy of Development of Renewable Energy for Power Generation, 2006. The Power Policy 2013.","The GoP is now planning to generate 3,000 MW through ARE Distributed Generation (DG) by 2020; and 5% of the total power generation through renewable energy and more significantly through wind energy sources by 2030"]
["NAMA0059","NS-135",null,"Strategizing for Grid Strengthening / Improvement for evacuation of power from Solar Power Projects","Asia & Pacific","Southern Asia","Pakistan",null,"This NAMA Support project is designed to develop a master plan for development of solar power and prepare a strategy for developing national grid. Establishing a financing instrument for development of solar power with the focus of addressing concerns of lenders and developers.","A strategy document will be prepared that would facilitate in evacuation of power supply of 1,500 MW in the national grid could be achieved. A financing instrument will be created to promote solar power in the country.","Alternative Energy Development Board, Ministry of Water and Power","Energy supply","Solar","Solar PV","2015-01-01",3,"2014-10-31","External support for preparation","Duty exemptions on renewable/energy efficiency equipment.",null,null,null,null,18.460543999999999,null,null,null,null,18.460543999999999,8.7839589999999994,9.6765849999999993,null,null,1.26,null,null,"Human resource development","Goal for a rapid large scale GHG reduction. National government incentives to change/disincentives to no change.",1500]
["NAMA0060","NS-136",null,"Accelerating the Market Transformation to Energy Efficient Lighting","Asia & Pacific","Southern Asia","Pakistan",null,"Development and enforcement of a National Efficient Lighting Strategy, including minimum energy performance standards (MEPS). Additionally, the project will establish a revolving loan fund (RLF) to accelerate the transition to efficient lighting products.\n","Market transformation towards energy efficient lighting in residential, domestic, industrial and outdoor sectors. During the first year of the implementation, it is expected that 100 projects will receive financing with an average size of funding of 40,000 USD.","National Energy Conservation Centre (ENERCON), Ministry of Water and Power","Residential & Service","Lighting","Establishing regulation & financing mechanisms",null,null,"2014-10-31","External support for preparation","The Energy Conservation Fund (ECF) is an active revolving fund governed by a board of public and private sector entities. ECF has the capacity to effectively handle the proposed Revoling Loan Fund (RLF) component.",null,null,null,null,9.1231000000000009,null,null,null,null,9.1231000000000009,9.1231000000000009,null,null,null,null,null,"The project also start a transformational change to LED technologies and controls ",null,"Introduction of mandatory energy labeling. Information campain performed. Financial support for low carbon technologies. Strenghen enforcement of existing laws.",null,null,null,null,"National Climate Change Policy approved in 2012 outlines goals and strategies to achieve targets in the Adaptation and Mitigation sectors. National Energy Conservation Policy, 2006 "]
["NAMA0061","NS-138",null,"Development and Installation of Carbon Dioxide Sequestration Technologies in Pakistan","Asia & Pacific","Southern Asia","Pakistan",null,"Preparing for CCS projects in Pakistan","Designing and installation pilot CCS plant near the Thar coal, Kandra gas fields and other power generation stations. Establishment of R&D Lab, technology development and fabrication costs, appraisal, technical and financial assistance/ evaluation costs.","Pakistan Council for Science and Technology (PCST), Ministry of Scienece and Technology. And Climate Change Division, Cabinet Secretariat Government of Pakistan.","CO2 sequestration","CCS","CCS","2015-01-01",3,"2014-10-31","External support for preparation",null,null,null,null,null,16.015523999999999,null,null,null,null,16.015523999999999,16.015523999999999,null,null,null,null,null,null,null,"Increased funding for technological R&D&D."]
["NAMA0062","NS-139",null,"Harnessing Municipal Waste of big Cities of Pakistan to Generate Electricity","Asia & Pacific","Southern Asia","Pakistan",null,"Designed to develop regulatory, legislative and financial instrumental streams for the development and promotion of municipal waste management system and deploying them for energy generation. complete phase out of the inefficient waste handling activities from all sectors of the country.","The project will result in establishing a Guarantee Support fund of US$ 5 million. Biomass/Waste‐to‐Energy (BM/WTE) plants for all kinds of waste","Alternative Energy Development Board, Ministry of Water and Power. And Climate Change Division, Cabinet Secretariat Government of Pakistan.","Waste","Landfill gas","Landfill power","2015-01-01",3,"2014-10-31","External support for preparation",null,null,null,null,null,25.873221000000001,null,null,null,null,25.873221000000001,14.155239,11.717981999999999,null,null,3,null,null,null,"Improvement of regulation.Financial support for low carbon technologies.",0.65]
["NAMA0063","NS-140",null,"Strategizing for Grid Strengthening / Improvement for evacuation of power from Wind Power Projects","Asia & Pacific","Southern Asia","Pakistan",null,"Establish master planning for development of wind power in potential areas of Pakistan. Establishing a financing instrument and a support fund for development of wind power.","Creating enabling environment and develop the grid infrastructure to evacuate 3,200 MW wind power in next five years.","Alternative Energy Development Board, Ministry of Water and Power","Energy supply","Wind","Establishing a financing instrument for development of solar power with the focus of addressing concerns of lenders and developers.","2015-01-01",3,"2014-10-31","External support for preparation",null,null,null,null,null,18.460543999999999,null,null,null,null,18.460543999999999,8.7839589999999994,9.6765849999999993,null,null,5.2,null,null,null,"Goal for a rapid large scale GHG reduction. National government incentives to change/disincentives to no change.",3200]
["NAMA0064","NS-091",null,"Transforming construction in Mongolia using Supplementary Cementitious Materials","Asia & Pacific","East Asia","Mongolia",null,"Introduction of supplementary cementitious materials (SCM) that can replace up to 70% of cement in concrete, establishment a 350,000 t/y SCM production facility, the design of supportive policies and management of the standardization process.","The project will use recycled fly ash from local coal-fired power plants as raw material. Change wet-processing of cement to dry processing is not part of this NAMA","Ministry of Environment and Green Development","Cement","Clinker replacement","Clinker replacement","2015-01-01",4,"2014-11-14","External support for implementation","This NAMA was mentioned in the submission to the Copenhagen accord from Mongolia.",null,null,null,null,15,null,null,null,null,15,15,null,null,null,0.42,null,null,null,"Technological innovation.",null,null,null,null,"The National Action Programme on Climate Change (NAPCC) was approved by the State Great Khural (Parliament) in 2000 and updated in 2011. "]
["NAMA0065","NS-147",null,"Bio-energy generation and greenhouse-gases mitigation though organic-waste utilization","Asia & Pacific","Southern Asia","Pakistan",null,"The project will focus on production of biogas from livestock wastes of dairy farms. ","Conduct diagnostic studies to evaluate the existing pattern of organic-wastes disposal/utilization and the amount of green-house gases emitted in a time span.","Pakistan Agriculture Research Council (PARC), Ministry of National Food Security and Research","Waste","Manure","Biogas","2015-01-01",3,"2014-11-14","External support for preparation",null,null,null,null,null,25.45,null,null,null,null,25.45,25.45,0,0,null,null,null,"Potential for Transformational Change. This NAMA project will be the first initiative in this field in Pakistan. ","Capacity building of the federal/provincial and NGO peoples regarding management of manure and carbon sequestration","Enhanced capabilities of actors. Experimentation and innovation in the policy/project.",null,null,null,null,"National Climate Change Policy approved in 2012 outlines goals and strategies to achieve targets in the Adaptation and Mitigation sectors. National Energy Conservation Policy, 2006 "]
["NAMA0066","NS-119",null,"Integrated improvement of Road-based Freight sector in Colombia","Latin America","South America","Colombia",null,"This NAMA covers a freight logistics policy, a freight improvement program and freight vehicle scrappage and fleet renewal ",null,"Ministry of Transport","Transport","Freight transport","Freight transport","2014-09-01",2,"2014-11-27","For recognition","A complete freight policy in the country is being developed by the Ministry of Transport in Colombia in the CONPES policy document number 3779. The implementation of the freight improvement program is indicated in CONPES policy documents 3489 (to modernize the sector), 3547 (for a national logistics plan) and 3579 (of fleet renovation). ",null,null,null,null,15,null,15,null,null,0,null,null,null,null,0.52,null,null,null,"The project will transform a sector. Negative incentives that discourage the continuation of business as ususal.",null,null,null,null,"CONPES 3547: National logistics policy.\nCONPES 3489: National public road freight transport policy.\nCONPES 3759 Policy guidelines for the modernisation of road freight transport, highlighting the strategic importance of the road freight vehicle scrappage and fleet renewal programme. "]
["NAMA0067","NS-149",null,"Reducing Greenhouse Gases (GHG) Emissions in Pig Farms in the Dominican Republic","Latin America","Caribbean","Dominican Republic",null,"The purpose of this NAMA is to reduce GHG emissions through anaerobic digestion in the Dominican pig farms.","The NAMA includes the installation of 1750 biodigesters.","National Council for Climate Change and Clean Development Mechanism (NCCCDM)","Waste","Manure","Biogas","2015-01-01",15,"2014-11-27","External support for implementation","USD60,000 from UNDP Carbon 2012 Regional Project for the feasibility study of a programme for capture and use of methane in pig farms in Domincan Republic and the preparation of a NAMA Concept.",null,null,null,null,80,null,{"$f":"80-38.8","v":41.2},null,null,38.799999999999997,38.799999999999997,0,0,null,0.36,null,"Reduced pig farm energy consumption","Reduced fossil fuel imports; reduction of pollution from pig farms.","The project will transform a sector",null,null,null,null,"Law No. 64-00; General Law on Environment and Natural Resources, Decree No. 601-08, Climate Change Development Plan (CCDP), Law 57-07 on Renewable Sources of Energy Incentives and its Special Regimes. Law 1-12 of the National Development Strategy. "]
["NAMA0068","NS-150",null,"Reduction, Recycling and Reuse of Solid Waste in Kampala City","Africa","East Africa","Uganda","Kampala","Reduction, recycling and reuse of solid waste in Kampala. The NAMA will target the 60% of solid waste in Kampala that is not collected by the Kampala Capital City Authority (KCCA).","Reducing the amount of municipal solid waste produced by not creating it, reuse (reusing materials and packaging where possible) and recycling (materials and packaging that cannot be reused should be recycled)","Climate Change Department","Waste","Landfill gas","Reduction of MSW","2015-01-01",1,"2014-12-01","External support for preparation","The National Climate Change Policy of 2013 promote sustainable use of solid and liquid wastes for energy generation and other uses, such as fertilisers; and promote proper disposal and sustainable use of waste.",null,null,null,null,0.15000000000000002,null,null,null,null,0.15000000000000002,0.1,0.05,null,null,null,null,null,null,"Information campain performed. Multilevel interaction. High local involvement in the project."]
["NAMA0069","NS-151",null,"The Promotion of the Use of Efficient Institutional Stoves in Institutions","Africa","East Africa","Uganda",null,"Promotion of the use of improved energy efficient cook stoves (mainly the rocket stove using 33% less wood) in educational institutions. Development of standards for public stoves. Support the development of a sustainable stove industry. ","A database of schools and their energy status will be made and subsequently updated on a regular basis. Sensitisation of the Ministry, District Education Officer, the District Inspector of Schools, headteachers, teachers, school management committees and parents. ","Climate Change Department","Service","EE public stoves","EE public stoves","2015-01-01",0.5,"2014-12-01","External support for preparation","• Background and feasibility studies :  US$ 100,000\n• Technical assessments and designs: US$ 40,000\n• Consultations with stakeholders : US$ 20,000\n• Work plans, including specific activities and elements: US$  10,000\n• Capacity Building: US$ 30,000",null,null,null,null,0.1,null,null,null,null,0.1,0.1,null,null,null,0.11123,null,null,null,"Financial support for low carbon technologies. Multilevel interaction. Introduction of technology standards/performance standards.",null,null,null,null,"More detailed NAMA proposal attached"]
["NAMA0070","NS-153",null,"Bus Rapid Transit (BRT) for Kampala","Africa","East Africa","Uganda","Kampala","Planning a coordinated urban transportation design of routes, linkage between the BRT routes and other modes of transport, facilities increasing ridership, operational mechanisms of efficiency such as scheduling, on time repairs, maintenance, buses, pricing, park and ride facilities. ","The activities of the NAMA includeplanning 9 routes of the BRT, non-motorised transport (NMT) routes linked to the bus routes, park and ride facilities, programming and scheduling buses along the routes, and ensuring systems for operational efficiency.\n","Climate Change Department","Transport","Bus Rapid Transit","Bus Rapid Transit","2015-01-01",1,"2014-12-01","External support for preparation",null,null,null,null,null,0.25,null,null,null,null,0.25,0.25,null,null,null,{"$f":"42.5/25*0.25","v":0.42499999999999999},null,null,null,"Information campain performed. First of its kind project. Change to public transport",null,null,null,null,"More detailed NAMA proposal attached"]
["NAMA0071","NS-154",null,"Developing appropriate strategies and techniques to reduce methane emissions from livestock production in Uganda","Africa","East Africa","Uganda",null,"Exploring appropriate feeding strategies that increase productivity while at the same time reduce methane emissions from enteric fermentations.","Exploring various feed additives, including plant extracts (condensed tannins, saponins, essential oils) and rumen modifiers (yeast, bacterial direct fed microbials, and enzymes).","Climate Change Department","Waste","Livestock farms","Reduced enteric fermentation","2015-01-01",0.5,"2014-12-01","External support for preparation",null,null,null,null,null,8.6999999999999994E-2,null,null,null,null,8.6999999999999994E-2,8.6999999999999994E-2,null,null,null,null,null,null,null,"Information campain performed. First of its kind project.",null,null,null,null,"More detailed NAMA proposal attached"]
["NAMA0072","NS-156",null,"Integrated Wastewater Treatment for Agro-process Water in Uganda","Africa","East Africa","Uganda",null,"The NAMA will assist in reducing pollution loads from agro-processing factories on surface water systems, especially the Lake Victoria basin. Feasibility study for 14 fish factories and abattoirs.\n","Methane will be captured in the form of biogas and using a generator converted to electricity, and/or used directly for cooking and lighting where the volumes of biogas generated are small.","Climate Change Department","Waste","Waste water","Fish factories and abattoirs.\n","2015-01-01",1,"2014-12-01","External support for preparation",null,null,null,null,null,{"$f":"Z75+AB75+AC75","v":0.25},null,null,null,null,{"$f":"SUM(AD75:AF75)","v":0.25},0.25,null,null,null,null,null,null,null,"Multilevel interaction.",null,null,null,null,"More detailed NAMA proposal attached"]
["NAMA0073","NS-158",null,"Periodic Vehicle Inspection for Emissions and Roadworthiness","Africa","East Africa","Uganda",null,"The vehicle inspection action will involve two types of inspection. 1) The Pre-Shipment Inspection (PVOC) done in collaboration with agencies of the exporting countries. 2) The periodic inspection and certification for roadworthiness done in the country.","Both inspection points will be based on indicators such as: vehicle age, engine type, fuel capacity, year of manufacture. The NAMA will initially require investment by government, but will gradually become self-financing since vehicle users will be charged.","Climate Change Department","Transport","More efficient vehicles","Vehicle inspection","2015-01-01",1,"2014-12-01","External support for preparation","This NAMA is one component of the larger NAMA, Fuel Efficiency in Motor Vehicles, that will implement a Fuel Efficiency Initiative with policies and regulations to promote the use of more efficient vehicles",null,null,null,null,0.2,null,null,null,null,0.2,0.2,null,null,null,null,null,null,null,"Multilevel interaction. Negative incentives that discourage the continuation of business as ususal.Introduction of technology standards/ performan-ce standards.",null,null,null,null,"More detailed NAMA proposal attached"]
["NAMA0074","NS-072",null,"Low Carbon Coffee - Costa Rica","Latin America","Central America","Costa Rica",null,"Four GHG measures at about half of the coffee farms and the mills. At all, 52,787 coffee producers, 184 coffee mills (organized in cooperatives or private companies) are maintaining the coffee sector as an important export sector: actually about 9.2% of national exports.","1. Reductions in N2O emissions, by efficient practices of fertilizer application. 2. Reductions in CH4 emissions by improved water management in anaerobic treatment systems. 3. Reductions in CH4 and CO2 emissions through aerobic treatment and energetic use of pulp. 4. Reduction in CO2 emissions coming from electricity savings in the coffee drying. 5. Increased fixation of carbon by the spread of coffee agroforestry systems (intensified shading).\n","Ministry of Agriculture and Livestock (MAG)","Agriculture","Coffee production","All emissions","2015-01-01",5,"2014-12-08","External support for implementation","Tax reduction or price support for renewables and energy efficiency. ","Supported",null,"S-130 & S-62",{"$f":"7/0.84","v":8.3333333333333339},8.3333333333333339,null,null,null,null,8.3333333333333339,{"$f":"7/0.84","v":8.3333333333333339},null,null,null,0.12,null,"Cost savings, income diversification and capital building on farmers level, higher yields and earnings through increased soil fertility and less vulnerable soils, ecological competitiveness on markets through a certified carbon-neutral coffee trademark; maintenance of the level of employment: up to 150,000 jobs during harvest.","Soil Conservation and Restoration; Ecosystem services; Profitability","The project will be replicated, model for similar projects in other areas of the country.",null,null,null,null,"www.nama-facility.org/fileadmin/user_upload/pdf/Costa_Rica_NAMA_Coffee_-_VARSOVIA.pdf","The agricultural sector accounts for 37 % of national GHG emissions, 25% of these belong to the coffee sector (10% of overall emissions). "]
["NAMA0075","NS-071",null,"Costa Rica Livestock NAMA","Latin America","Central America","Costa Rica",null,"Changes in the primary production of meat and milk through the generation, dissemination and adoption of new measures (technologies and processes) of mitigation-adaptation in the livestock sector, but also in the form of processing the product within the Costa Rican agricultural chain.","Reduction of enteric fermentation. Hedges-pasture sections; Rational grazing; Pasture Improvement-feeding; Improved fertilization plans. Pilot farms will be established and funded in the five regions of the country","Ministry of Environment and Energy (MINAE) & Ministry of Agriculture and Livestock (MAG) & UNDP Costa Rica","Agriculture","Livestock sector and product processing ","All emissions","2015-01-01",15,"2014-12-12","External support for implementation","As part the Policy for the Costa Rican Agrifood Sector and Rural Development 2010-2021, in early 2013, it was decided to develop a NAMA for the sector.",null,null,null,null,0,null,null,null,null,0,null,null,null,null,{"$f":"6/15","v":0.4},null,null,"To strengthen the institutional, economic and social capacities of producers, livestock chambers, industry and environmental awareness of consumers","Multilevel interaction.  Sustainable development goals incentivice the transition. The project will transform a sector. Introduction of carbon market.",null,null,null,null,"More detailed NAMA proposal attached"]
["NAMA0076","NS-159",null,"Efficient Cookstoves","Latin America","North America","Mexico",null,"Reduce the emissions associated with the consumption of non renewable biomass and to significantly improve the health, the economy and quality of life of all the users through the provisioning of efficient stoves that allow them to cover all of their needs with in a sustainable manner.\n","No details","México NAMA Facility","Residential","EE households","Stoves","2015-01-01",0.5,"2014-12-12","External support for preparation","Currently, the main document of the NAMA is under development. Nevertheless, financial support is required to finish the main NAMA document, design the MRV mechanism and design a pilot project. ",null,null,null,null,0.6,null,null,null,null,0.6,0.6,null,null,null,1,null,null,"Reduced deforestation; improvements on the final user's economy; reduced indoor pollution.","The project will transform a sector. Negative incentives that discourage the continuation of business as ususal."]
["NAMA0077","NS-160",null,"Solar Water Heaters","Latin America","North America","Mexico",null,"Installation and use of solar heaters in residential, commercial, industrial and agricultural sectors","No details","México NAMA Facility","Energy supply","Solar","Solar water heating","2015-01-01",0.5,"2014-12-12","External support for preparation",null,null,null,null,null,0.5,null,null,null,null,0.5,0.5,null,null,null,1.66,null,null,"Create new job posts; Produce environmental awareness in the community. ","The programme will transform a sector"]
["NAMA0078","NS-161",null,"Cogeneration in Mexico","Latin America","North America","Mexico",null,"This NAMA seeks to eliminate schemes that allow the elimination of barriers that limit the implementation of cogeneration projects in the private sector","No details","México NAMA Facility","Energy supply","EE supply side","Cogeneration","2015-01-01",0.5,"2014-12-12","External support for preparation","Currently, the main document of the NAMA is under developement. Nevertheless, financial support is required to finish the main NAMA document, design the MRV mechanism and design a pilot project.",null,null,null,null,0.75,null,null,null,null,0.75,0.75,null,null,null,10.08,null,null,null,"High-carbon barriers are overcome."]
["NAMA0079","NS-162",null,"Car Fleet Renewal in Mexico","Latin America","North America","Mexico",null,"Substitution of 500 thousand vehicles with an age of 15 years or older with new vehicles in order to renew the national fleet. \n","Reduction of the average age of the national vehicle fleet (aiming to reduce its age from 14.8 to 11.2 years). ","México NAMA Facility","Transport","Road transport","More efficient vehicles","2015-01-01",1.5,"2014-12-12","External support for preparation","Financial support is required for the elaboration of the main NAMA document, design the MRV mechanism and design a pilot project. ",null,null,null,null,0.75,null,null,null,null,0.75,0.75,null,null,null,2.63,null,null,"Reduction of the fatalities and accidents; Creation of new jobs; Improvement of the air quality.","Negative incentives that discourage the continuation of business as ususal. Introduction of technology standards/performance standards ."]
["NAMA0080","NS-163",null,"Disposal and Use of Wastes and Solid and Biomass Residues","Latin America","North America","Mexico",null,"This NAMA seeks to promote, through and incentive system, activities of disposal, recycling, reuse and efficient exploitation of the solid wastes at national level, which will result altogether in a better management of the these residues.\n","Perform of a residues sorting program for its energy exploitation and recycling. New infrastructure for the efficient disposal of residues and for the develpment of projects focused in the energy exploitation of solid residues","México NAMA Facility","Waste","Landfills","Integrated solid waste management","2015-01-01",1,"2014-12-12","External support for preparation","Financial support is required for the elaboration of the main NAMA document, design the MRV mechanism and design a pilot project. ",null,null,null,null,0.75,null,null,null,null,0.75,0.75,null,null,null,10.25,null,null,"Reduction of the negative impacts in health resulting from an inefficient disposal of solid wastes.","The project will transform a sector.  Sustainable development goals incentivice the transition."]
["NAMA0081","NS-164",null,"Fuel Switch in the industry","Latin America","North America","Mexico",null,"This NAMA seeks to promote the creation of new schemes focused on the elimination of the barrier that currently stop the switch to less carbon intensive fuels for the industries.","No details","México NAMA Facility","Industry","Fossil fuel shift","Fossil fuel shift","2015-01-01",1,"2014-12-12","External support for preparation","Financial support is required for the elaboration of the main NAMA document, design the MRV mechanism and design a pilot project. ",null,null,null,null,0.75,null,null,null,null,0.75,0.75,null,null,null,5.0599999999999996,null,null,null,"The project will transform a sector. High-carbon barriers are overcome."]
["NAMA0082","NS-165",null,"Fuel Switch for the Power Generation","Latin America","North America","Mexico",null,"This NAMA seeks to promote the creation of new schemes focused on the elimination of the barrier that currently stop the switch to less carbon intensive fuels for the private industries.","No details","México NAMA Facility","Energy supply","Fossil fuel shift","Fossil fuel shift","2015-01-01",1,"2014-12-12","External support for preparation","Financial support is required for the elaboration of the main NAMA document, design the MRV mechanism and design a pilot project. ",null,null,null,null,0.75,null,null,null,null,0.75,0.75,null,null,null,11.43,null,null,null,"The project will transform a sector. High-carbon barriers are overcome."]
["NAMA0083","NS-166",null,"Renewable Energies and Energy Efficiency in the Private Sector","Latin America","North America","Mexico",null,"This NAMA seeks to promote the implementation of steps for the diversification and strengthening of the national energy network, creation of new jobs, attraction of international funds for the execution of renewable energy and energy efficiency projects.","No details","México NAMA Facility","Energy supply","Renewables & EE","Renewables & EE","2015-01-01",1,"2014-12-12","External support for preparation","Financial support is required for the elaboration of the main NAMA document, design the MRV mechanism and design a pilot project. ",null,null,null,null,0.6,null,null,null,null,0.6,0.6,null,null,null,15,null,null,null,"The project will transform a sector."]
["NAMA0084","NS-111","NAMA0050","NAMA for Sustainable Housing Retrofit","Latin America","North America","Mexico",null,"This NAMA seeks to maximize the efficiency of water, electricity and gas consumption in existing homes. The implementation of the specific retrofit measures will be defined by an energy advisor and will depend on the specific requirements, such as the building prototype and climate zone.","Based on a “whole house approach” where efficiency benchmarks are set for total primary energy demand for each building type taking into account climatic variables","Comisión Nacional de Vivienda (CONAVI), Secretaría de Desarrollo Agrario, Territorial y Urbano (SEDATU), and Instituto del Fondo Nacional de la Vivienda para los Trabajadores (INFONAVIT). ","Residential","Demand-side EE","Energy efficient buildings","2015-01-01",1,"2014-12-15","External support for implementation","An MRV system has been developed to measure the performance of every energy efficiency action and the overall performance of a house.",null,null,null,null,2.5057999999999998,null,{"$f":"2.5058-AC87","v":1.5034799999999997},null,null,1.0023200000000001,0.75173999999999996,0.12529000000000001,0.12529000000000001,null,0.5,null,"MRV of: gas, water, electricity consumption; room temperature, specific temperature in walls, floor and ceiling. ","SOCIAL: Improvements in quality of life (health, comfort). ECONOMIC: savings in energy costs.  \nENVIRONMENTAL: sustainable use of energy that results in GHG emissions reductions. ","Introduction of technology standards/ performan-ce standards "]
["NAMA0085","NS-170",null,"Low Emission Schools","Latin America","North America","Mexico",null,"Low Emission Schools Programme aims to empower students to effectively influence their communities on climate change and sustainability, while reducing CO2 emissions within the school. This programme is carried out through actions led by the educational community.","The financial support will be spent to develop the following activities:\n•GHG Inventory for the education sector \n•Identification of key sector needs \n•Quantification of co-benefits \n•Generation of information to influence public policy ","General Directorate of Climate Change Policy, Secretary of Environment and Natural Resources (SEMARNAT)","Service","Demand-side EE","Energy efficient Schools and Hospitals","2015-01-01",5,"2014-12-18","External support for implementation","Prior activities: BMZ: €210 K Apr 2013- Oct 2014; Foreign & Commonwealth Office (FCO) UK: €107 K Apr 2013- Oct 2014; German Minister for Foreign Affairs: €75 K Jun 2014 – Dec 2014; Technical & capacity building: GIZ Local subsidy: NGO PIDES for piloting phase Apr 2013 - Oct 2014.",null,null,null,null,14,null,null,null,null,14,14,null,null,null,4.4999999999999998E-2,null,"Number of participating schools; Number of projects developed by children; Changes in school plans, local climate change plans or federal programs ","The Low Emission Schools Programme activities are registered on a platform that serves as an interactive portal for environmental education. ","The project will transform a sector. High local involvement in the project. MRV frameworks informs transition management. Information campain performed."]
["NAMA0086","NS-167",null,"Ethiopia Railway's ­ Addis Ababa Light Rail Transit (LRT) Transit Oriented Development (TOD) NAMA ","Africa","East Africa","Ethiopia","Addis Ababa","Shift of freight and passenger transport from road to rail. In Addis Ababa Light Rail Transit (LRT) the ERC will with the City of Addis Ababa plan pilot Transit Oriented Development (TOD), which promotes mixed use public, residential and commercial areas, favour non-motorized modes of transport.","A: Institutional framework for TOD implementation; B: TOD regulatory framework established; C: Detailed TOD implementation plan for 10 stations of the Addis Ababa Light Rail Transit; D: Structured debt fund is designed; E: MRV system developed.  ","Ethiopian Railway Corporation (ERC) ","Transport","Transit Oriented Development","Light Rail Transit","2015-01-01",1.5,"2014-12-18","External support for preparation","TOD provisions are being incorporated in the Addis Ababa City Master Plan. The north-south & east-west Light Rail is being built.",null,null,null,null,8.9,"The Government of Ethiopia through ERC ",1.2,null,null,7.7,7.7,null,null,null,null,null,null,"The TOD will increase transport safety, reduce pollution, lower costs of transport and provide easy access to work and business.","Political vision and leadership. The project will transform a sector. National government incentives to change/disincentives to no change. Multilevel interaction. Change to electrified railways.",null,null,null,null,null,"The Government has issued the Climate‐Resilient Green Economy (CRGE) strategy in 2011, which lays down the country’s plan todevelop a carbon neutral, green economy by 2025."]
["NAMA0087","NR-172",null,"Ethiopia's National Railway Network and Addis Ababa Light Rail Transit (LRT) NAMA ","Africa","East Africa","Ethiopia",null,"The National Railway network (NRN), on its part, consists of 8 corridors of varying lengths in diversified  strategic  routes  that  will  be  realised  in  two  phases, covering over 5,000 km in distance. ","1: Addis Ababa‐Modjo-Awash-Dire Dawa-Dewanl (656 km), 2:  Modjo-Shashemene-Arbaminch-Konso-Moyale (905 km), 3: Addis Ababa-Ijaji-Jimma-Guraferda‐Dima (740 km), 4: Ijaji-Nekemet-Assosa-Kumruk (460 km), 5: Awash-Kombolcha-Mekele-Shire (757 km), 6: Fenoteselam-Bahirdar-Wereta-Weldia-Semera-Elidar (734 km), 7: Wereta‐Azezo‐metema (244 km), 8: Adama-indeto-Gasera (248 km). \n","Ethiopian Railway Corporation (ERC) ","Transport","New railway lines","New railway lines","2011-01-01",9,"2015-01-06","For recognition",null,null,null,null,null,16836,"The initial financing of the three railway routes and the Addis Ababa LRT has been successfully secured",{"$f":"15600+475+761","v":16836},null,null,0,null,null,null,null,9,null,null,"Reduced road maintenance, lower congestion, air pollution (NOx), noise and vibration pollution, traffic accidents, increase employment, social equity and tax revenues. Enhanced integration of Ethiopia with its East African neighbours.  ","Goal for a rapid large scale GHG reduction. The project will transform a sector.",null,null,null,null,null,"The Government has issued the Climate‐Resilient Green Economy (CRGE) strategy in 2011, which lays down the country’s plan todevelop a carbon neutral, green economy by 2025."]
["NAMA0088","NS-173",null,"Ethiopian Railways –Railway Academy NAMA ","Africa","East Africa","Ethiopia",null,"The Railway Academy will serve the following functions: Training of personel; To promote preparation and review of railway sector policy  documents;  Organize and facilitate railway sector workshops and seminars;  promote research and development. \n","The electric  rail network is assumed to transport 50% of dry and liquid cargo by 2030. ","Ethiopian Railway Corporation (ERC) ","Transport","New railway lines","Capacity building","2015-01-01",1.5,"2015-01-06","External support for preparation","The requested support is to be used to carry out a feasibility and need assessment study for a future Railway Academy as well as to propose content of relevant curricula. Once a feasibility study is being completed, ERC will request support to implement the Railway Academy through a NAMA for  implementation. ",null,null,null,null,0.3,null,null,null,null,0.3,0.3,null,null,null,null,null,null,null,"Experimentation and innovation in the policy/project. Enhanced capabilities of actors.",null,null,null,null,null,"The Government has issued the Climate‐Resilient Green Economy (CRGE) strategy in 2011, which lays down the country’s plan todevelop a carbon neutral, green economy by 2025."]
["NAMA0089","NS-168",null,"Ethiopia Railways ­‐ Establishment of Climate Vulnerability Infrastructure Investment Framework NAMA ","Africa","East Africa","Ethiopia",null,"Vulnerability mapping will assure durability of the emission reductions attributed to the implementation of Ethiopia's National Railway Network and the Addis Ababa Light Railway Transit (LRT) project . ",null,"Ethiopian Railway Corporation (ERC) ","Transport","Adaptation","Vulnerability of Railway line",null,null,"2015-01-06","External support for implementation",null,null,null,null,null,0,null,null,null,null,0,null,null,null,null,null,null,null,null,"None"]
["NAMA0090","NR-174",null,"Expansion of electricity generation from sustainable forestry biomass byproducts.","Latin America","South America","Uruguay",null,"Increased share of biomass use in the power plants. Biomass from forest plantations and industries (sawmills, board manufacturing and pulp mills).","429 MW of forestry biomass power will be installed between 2005 and 2018; 184 MW of that power will deliver electricity to the national grid.","National Director of Energy & National Director of Forestry","Forestry","Biomass energy","Forestry biomass","2005-01-01",13,"2015-01-06","For recognition","The 224 MW is an expansion compared to NR-007.",null,null,null,null,0,null,null,null,null,0,null,null,null,null,0.622,null,"MW generated a year from forestry biomass; number of plants installed; tons of forestry biomass used to generate energy.","Jobs created; technology transfer and innovation; capacity building; increased in the energy independence; impact on balance of payment; broaden distributed power generation.","Goal for a rapid large scale GHG reduction. Sustainable development goals incentivice the transition.",224,null,null,null,"Policies National Plan to Respond to Climate Change:\nwww.cambioclimatico.gub.uy\nNational Energy Policy: www.dne.gub.uy\nDecrees related to renewable energy generation: www.probio.gub.uy and\nwww.mvotma.gub.uy/namas/index.php  "]
["NAMA0091","NS-066",null,"Climate change mitigation through sustainable and more productive beef production in grasslands","Latin America","South America","Uruguay",null,"From year 5 at least 5 million hectares (50%) of uruguayan rangelands are managed with the alternative sustainable paradigme of adequate grazing pressure (eliminating overgrazing), calving rate grows from an average of 64% to 80%.  ","Assist livestock farmers to change their grasslands grazing practices, 2) To public and farmers institutions to perform MRV. The less ghg intensity (per kg of beef) will result from higher productivity and higher efficiency of the herd (higher calving rate, reduced age at slaughter, etc.). ","Ministry of Livestock, Agriculture and Fisheries (MGAP","Agriculture","GHG reduction from cattle","Increase soil organic matter","2014-01-01",30,"2015-02-24","External support for implementation",null,"Withdrawn",null,null,null,30,null,null,null,null,30,20,10,null,null,99,null,"Reduction of overgrazing, and consequently loss of soil organic matter (SOC) in the beef cattle sector. Productivity increase will a) sequester CO2 in SOC and b) decrease non-CO2 GHG emissions intensity. ","Higher biodiversity, more resilience to drought and higher soil organic matter increases water satorage capaciity. ",null,null,null,null,null,null,"Removals estimates include only SOC. Additionally it is expected to reduce ghg emissions intensity per kg of beef by 30 percent."]
["NAMA0092","NS-175",null,"Federal Road Freight Transport NAMA for owner operators and smaller fleet carriers","Latin America","North America","Mexico",null,"Improve energy efficiency in the federal road freight transport sector through the modernization of the fleet, the inclusion of technologies and training programs.","1. Include «Eco-driving» courses for truck drivers as a part of the mandatory courses every two years. 2. Improve aerodynamics, automatic inflating systems (AIS), among others. 3.  Modernization of the vehicle fleet, via the scrapping and renovation of road transport fleet and the NOM-044-SEMARNAT.","Ministry of the Environment and Natural Resources (Secretaría de Medio Ambiente y Recursos Naturales)","Transport","Freight transport","More efficient trucks","2015-07-01",null,"2015-04-16","External support for implementation","The NAMA is based on the following two existing government programs: 1.“Transporte Limpio” (SEMARNAT): A voluntary market-driven partnership program which promotes eco-driving courses and fleet upgrades with various fuel saving technologies and by reducing idling time. 2.Scrapping Scheme and Financial Scheme (SCT): These schemes promote the renewal of old trucks with modern ones.",null,null,null,null,70,null,null,null,null,70,63,null,{"$f":"0.8+2+4.2","v":7},null,{"$f":"3.5+1+2","v":6.5},null,null,"Positive impact on public health through the reduction of criteria pollutant emissions (particulate matter, black carbon, carbon monoxide and nitrogen dioxide, among others). Increasing job opportunities for owner operators and smaller fleet carriers. Improvement of road safety.","Introduction of technology standards/performance standards. Enhanced capabilities of actors."]
["NAMA0093","NS-188",null,"Expansion of combined cycle power plant in Nasiriyah","Middle-East","Fertile Cresent","Syria",null,"Installing an extra station with a combined cycle unit working on gas or fuel oil.","Includes : design , manufacture, supply, transportation, insurance, testing and implementation of civil works, installation and operation of machinery and equipment needed","Public Establishment for Electrical Generation","Energy supply","EE supply-side","Single cycle to combined cycle","2015-07-01",3,"2015-06-04","External support for implementation",null,null,null,null,null,395,null,154,null,null,241,237,null,4,null,0.38708999999999999,null,null," Achieve  economic and social development while preserving the natural sources","None"]
["NAMA0094","NS-191",null,"Combined cycle power plant in the coastal area","Middle-East","Fertile Cresent","Syria",null,"The purpose of the project is to design, manufacture, supply, transportation, insurance, testing a combined cycle power plant in the coastal area with capacity of 350 MW ±10% . This plant works on natural  gas  as primary fuel or  fuel oil . as secondary fuel.","Includes installation of a station for receiving, storage, treatment  and transport of liquefied gas with capacity of 5 million cubic meters per day, in addition to supply of spare parts and  equipments needed, and conducting of a  training program to ensure operating and investment securely.\n","Public Establishment for Electrical Generation","Energy supply","EE supply-side","Single cycle to combined cycle","2015-07-01",3,"2015-06-04","External support for implementation",null,null,null,null,null,453,null,176.5,null,null,276.5,272,null,4.5,null,0.38708999999999999,null,null,"Achieve  economic and social development while preserving the natural sources.                                   Raise national income and the development of industrial enterprises.","None",350]
["NAMA0095","NS-192",null,"Solar electric power plant ","Middle-East","Fertile Cresent","Syria","Damaskus","Installation of Solar electric power plant with capacity of 1 MW within the conversion station of AlKiswah area near Damascus. ",null,"Public Establishment for Electrical Generation","Energy supply","Solar","Solar PV","2015-07-01",1,"2015-06-04","External support for implementation",null,null,null,null,null,1.294,null,0,null,null,1.294,1.294,null,null,null,2.7000000000000001E-3,null,null,"Achieve  economic and social development while preserving the natural sources.                                   Raise national income and the development of industrial enterprises.","None",1]
["NAMA0096","NS-193",null,"Windfarm in Ghabagheb ","Middle-East","Fertile Cresent","Syria","Damaskus","The purpose of the project is to design, manufacture, supply, transportation, insurance, testing and implementation of civil works, installation and operation of machinery and equipment needed for establishing a  wind farm with capacity of 50 MW in Ghabagheb south of Damascus.","The project includes  supplying  of spare parts and  equipments needed, and conducting of a  training program to ensure operating and investment securely.\n","Public Establishment for Electrical Generation","Energy supply","Wind","On-shore wind","2015-07-01",1,"2015-06-04","External support for implementation",null,null,null,null,null,84.087999999999994,null,32.341000000000001,null,null,51.747,50.453000000000003,null,1.294,null,0.1,null,null,"Achieve  economic and social development while preserving the natural sources.                                   Raise national income and the development of industrial enterprises.","None",50]
["NAMA0097","NS-194",null,"Windfarm in Quttaineh","Middle-East","Fertile Cresent","Syria","Homs","The purpose of the project is to design, manufacture, supply, transportation, insurance, testing and implementation of civil works, installation and operation of machinery and equipment needed for establishing a  typical wind farm at the north border of Lake Quttaineh- southern of Homs governorate with capacity of 50 MW.","The project includes  supplying  of spare parts and  equipments needed, and conducting of a  training program to ensure operating and investment securely.\n","Public Establishment for Electrical Generation","Energy supply","Wind","On-shore wind","2015-07-01",1,"2015-06-04","External support for implementation",null,null,null,null,null,84.087999999999994,null,32.341000000000001,null,null,51.747,50.453000000000003,null,1.294,null,0.1,null,null,"Achieve  economic and social development while preserving the natural sources.                                   Raise national income and the development of industrial enterprises.","None",50]
["NAMA0098","NS-196","NS-197","Rural Development in Namibia through Electrification with Renewable Energies","Africa","Southern Africa","Namibia",null,"In its first phase, the NAMA aims to establish 10 mini grids and 13 Energy Zones. This will provide electricity to around 1,400 households and around 8,500 people. supply form solar, wind, and hydro.","Intervention A, mini grids will be established in rural communities in the vicinity of schools and potential future tourism projects, such as Eco lodges.  Intervention B will support the installation of Energy Zones (EZs). ","Environmental Investment Fund (EIF). Supported in technical issues by the Namibia Energy Institute (NEI). ","Energy supply","Off-grid renewables","Wind, solar, hydro","2015-07-01",0.41666666666666669,"2015-06-16","External support for preparation",null,"Supported",null,"S-186",{"$f":"X101","v":7.0000000000000007E-2},7.0000000000000007E-2,null,null,null,null,7.0000000000000007E-2,7.0000000000000007E-2,null,null,null,0.02,null,"Sectoral, system or sub-system changes, Sustainable development goals incentivice the transition,Financial support for renewable and energy efficiency."]
["NAMA0099","NS-197","NS-196","Rural Development in Namibia through Electrification with Renewable Energies","Africa","Southern Africa","Namibia",null,"In its first phase, the NAMA aims to establish 10 mini grids and 13 Energy Zones. This will provide electricity to around 1,400 households and around 8,500 people. supply form solar, wind, and hydro.","Intervention A, mini grids will be established in rural communities in the vicinity of schools and potential future tourism projects, such as Eco lodges.  Intervention B will support the installation of Energy Zones (EZs). ","Environmental Investment Fund (EIF). Supported in technical issues by the Namibia Energy Institute (NEI). ","Energy supply","Off-grid renewables","Wind, solar, hydro","2015-07-01",0.41666666666666669,"2015-07-01","External support for implementation",null,null,null,null,null,14,null,3.1,null,null,10.9,8,null,2.9,null,0.02,null,"Sectoral, system or sub-system changes, Sustainable development goals incentivice the transition,Financial support for renewable and energy efficiency."]
["NAMA0100","NS-198",null,"Thailand Refrigeration and Air Conditioning NAMA (RAC NAMA)","Asia & Pacific","Southeast Asia","Thailand",null,"The NAMA comprehensively approaches four intervention areas 1) production & sales of GreenRAC equipment, 2) use and servicing, 3) adapting the political and financial framework and 4) awareness raising on benefits and behavioural change.","The NAMA bundles and leverages the existing financial mechanisms to promote energy efficient RAC devices through the GreenRAC Innovation Fund (GRIF). The NAMA seed funding to the GRIF is leveraged by 7-fold.\n","Office of Natural Resources and Environmental Policy and Planning (ONEP)","Residential & Service","Refrigeration and Air Conditioning ",{"$f":"+M103","v":"Refrigeration and Air Conditioning "},"2015-07-01",1,"2015-07-14","External support for preparation",null,"Supported",null,"S-62",{"$f":"14.7/0.84","v":17.5},0.14230200000000001,null,null,null,null,0.14230200000000001,7.1151000000000006E-2,7.1151000000000006E-2,null,null,2,null,null,null,"The project will transform a sector.",null,null,null,null,null,"The Refrigeration and Air Conditioning (RAC) sectors account for approximately 20% of the total Thai GHG missions. The sectoral emissions are projected to triple by 2030. Emissions are resulting from the use of high GWP refrigerants (10%) and energy consumption (90%).     \n"]
["NAMA0101","NS-199","NS-226","Rural Electrification with Renewable Energy in The Gambia","Africa","West Africa","Gambia",null,"Key objectives are: (i)Increase the level of renewable energy for electricity\n(ii)Reduce greenhouse gas emissions in the power generation sector. \n(iii)Increase the rural population’s access to sustainable electricity.\n(iv)Encourage an increase in rural income generation, and improve rural livelihoods.\n","Phase 1 will include the establishment of two types of ventures: RE Community Energy Centres (RE-CEC) and RE Micro-Grids (RE-MGs). Phase 2 ventures will comprise RE systems which will displace thermal generation at existing regional grids (referred to as RE Displacement Systems – RE-DIS) and RE independent power producers (RE-IPPs).","Ministry of Environment, Climate Change, Water, Forestry and Wildlife","Renewables","Off-grid renewables","Solar",null,null,"2015-07-27","External support for preparation","The 2013 Renewable Energy Act provides the framework for both on and off-grid renewable energy tariffs and net metering, as well as establishing a national RE Fund","Supported",null,"S-186",0.06,0.06,null,null,null,null,0.06]
["NAMA0102","NS-200","NS-002","Sustainable production with low-emission technologies in agriculture and agroindustry production chains.","Latin America","South America","Uruguay",null,"Creation of a Program focussed on the transformation of the differnet kinds of waste generated in the agriculture and agroindustry production chains in various types of energy or by products","Laboratory research for target sectors identified in previous stages is carried on for technology development, adaptation, assessment and transfer.","Ministry of Industry, Energy and Mining","Agriculture","Biomass energy","Agricultural waste","2015-08-01",2,"2015-08-07","External support for preparation","Seeking Support",null,null,null,null,0.625,null,null,"The other activities finance by GEF",null,{"$f":"SUM(AD105:AF105)","v":0.625},0.625,0,0]
["NAMA0103","NS-201",null,"NAMA Support for the Tunisian Solar Plan","Africa","North Africa","Tunisia",null,"This NAMA covers clear long-term targets, a public instrument package to create an enabled investment environment, assessment of costs and incremental costs, assessment of socio-economic and environmental benefits, and MRV/indicators. This NAMA submission to the NAMA Registry is seeking financial support for: \n- Design and implementation of the sub-set of policy and financial de-risking instruments that are not already receiving GEF financial support in the context of the UNDP-implemented, GEF-financed project, 'NAMA Support to the Tunisian Solar Plan' .\n- Funding for the premium payments required for solar PV electricity after de-risking (i.e. funding for the territorial performance-based mechanism, TPBM). ","The technologies considered are wind, solar photovoltaic (PV) and concentrated solar power (CSP), with electricity generation contributions from each of 15%, 10% and 5% respectively of electricity production in 2030","National Agency for Energy Conservation of Tunisia (Agence Nationale pour la Maîtrise de l'Energie, ANME)","Energy supply","Renewables","Solar & Wind","2015-08-01",5,"2015-08-27","External support for implementation","The UNDP-GEF project (budget US$ 3.6 million GEF grant + US$ 65.4 million co-finance) has designed the NAMA and is financing specific elements of implementation: institutional strengthening and coordination, design of the Territorial Performance-Based Mechanism, MRV systems, investment support to a 10 MW solar PV plant at Tozeur and a 24 MW wind farm at Gabes.\n","Supported",null,"S-63",3.6,919.4,null,null,"Capacity building support are covered by the GEF support",null,919.4,915.8,null,3.6,null,{"$f":"30.5/15","v":2.0333333333333332},null,null," Increasing social equality and reducing energy poverty, through increased access to quality and affordable energy services","The project will transform a sector.",null,null,null,null,null,"The Tunisian Solar Plan (TSP), originally formulated in 2009, was revised in 2012 with the financial support of the Agence Française de Développement (AfD) to achieve a total renewable energy penetration target of 30% of the Tunisian electricity generation mix by 2030."]
["NAMA0104","NS-189",null,"Blue Carbon NAMA: Conserve and Restore Mangroves in the Dominican Republic","Latin America","Caribbean","Dominican Republic",null,"Preparation of a robust Design, encompassing capacity-building, technical assistance, planning for financial mechanisms for long-term financing and sustainability, sound scientific research, and wide-ranging participation.  It will ensure that by the end of the Preparation phase that the country will be prepared to enter the Implementation phase.","Quantify the carbon sink capacity of Mangroves in the Dominican Republic through a comprehensive inventory. Develop national strategies to restore and reforest mangrove systems. Establish a Blue Carbon NAMA Knowledge Toolkit that facilitates knowledge transfer to other countries.","National Council for Climate Change and Clean Development Mechanism","Forestry","Mangroves","Conservation and restoration ","2015-01-01",1.5,"2015-06-04","External support for preparation","Base study conducted by Counterpart International in 2013 in Montecristi National Park.",null,null,null,null,{"$f":"Z107+AB107+AC107","v":3},null,null,"Counterpart International will support the Climate Council in the Financial, Technical, and Capacity Building areas",null,3,1.5,0.8,0.7,null,null,null,null,null,"The project will transform a sector.  Significant capacity building included in the programme.",null,null,null,null,"Attached article: \"Carbon stocks of intact mangroves and carbon emissions arising from their conversion in the Dominican Republic\" ","Mangroves declined from 34,400 ha in 1980 to 21,215 ha in 1998 "]
["NAMA0105","NS-206",null,"Sustainable Fertilizers Production and Use","Africa","East Africa","Rwanda",null,"NAMA design and documentation (122 k$) on institutional framework, implementation, baseline, mitigation calculations, financial structuring, MRV system. 3 feasibility studies (188 k$) will focus on: (1) technical, financia, institutional assessment for up-scaled community diary/livestock cooperatives, (2) low emissions lime production, (3) study of best methods for manure and fertilizer management.","1) Collection and production of livestock manure for organic fertilizer (creation of 600 community cattle agribusiness cooperatives). 2) improved production of finely granulated natural lime found in Musanze, Karongi and Rusizi districts. 3) improved agronomic management soils capacity development programs implemented through Rwanda’s agricultural extension service and farmer schools in rural areas.","Rwanda Ministry of Agriculture and Animal Resources (MINAGRI) & Rwanda Agriculture Board (RAB)","Agriculture","Alternative fertilizers","Composting","2016-01-01",{"$f":"18/12","v":1.5},"2015-10-01","External support for preparation","The Climate Change Focal Point (Rwanda Environmental Management Authority) and the National Implementing Entities will provide in-kind programme management, institutional coordination, and procurement services during the preparation phase.",null,null,null,null,0.4,null,null,null,null,0.4,0.31,null,0.09,null,{"$f":"0.88/15","v":5.8666666666666666E-2},null,null," Poverty reduction, private sector economic growth, green growth and climate resilience strategies, "," New technologies owned by citizens & farmes."]
["NAMA0106","NS-207",null,"Developing a Sustainable Charcoal Value Chain in Rwanda","Africa","East Africa","Rwanda",null,"NAMA design and documentation (110 k$) on institutional framework, implementation planning, financial structuring, support required, MRV system.  Comprehensive survey (251 k$) build on studies in Rwanda on charcoal and woodfuels. Technical support( 20 k$): etsablishing pilot program on efficient kiln charcoal production operated for 6 months.","The NAMA goal is to increase the number of private sector enterprises (companies & cooperatives) within the charcoal chain. Improving the sustainability of charcoal production (improved kilns), transportation and retail.","Rwanda Ministry of Natural Resources (MINIRENA) & Rwanda Natural Resources Authority (RNRA) ","Fugitive","Charcoal production","Improved kilns","2016-01-01",2,"2015-10-01","External support for preparation","The Climate Change Focal Point (Rwanda Environmental Management Authority) and the National Implementing Entities will provide in-kind programme management, institutional coordination, and procurement services during the preparation phase.",null,null,null,null,0.47099999999999997,null,null,null,null,0.47099999999999997,0.36099999999999999,0.02,0.09,null,{"$f":"5.77/15","v":0.38466666666666666},null,null,"Decreased air pollution as improved kilns. Limiting the impact of extreme energy poverty via better use of resources. Improved and more efficient access to markets for producers, distributers, and consumers.","Significant reduction of deforestation/increase of forest area.  Multilevel interaction."]
["NAMA0107","NS-208",null,"Electrification with solar PV mini-grids in rural villages in Rwanda","Africa","East Africa","Rwanda",null,"NAMA design and its documentation (110 k$) on institutional framework, implementation planning, financial structuring, support required, MRV system. Rural Electrification Master Plan (200 k$): on-grid and off-grid access to electricity in Rwanda, indicating where off-grid access will be needed, and pointing out the locations for solar PV mini-grids.","Off-grid rural electrification in Rwanda and focusing on the development and implementation of up to 100 solar PV mini-grids in rural villages, providing 24 hr supply via solar PV generation and low voltage mini-grids. Operation under Public Private Partnership (PPP) framework and management agreements with community cooperatives or state agency. ","Rwanda Ministry of Infrastructure (MININFRA)","Solar","Energy supply","Solar mini-grids","2016-01-01",{"$f":"18/12","v":1.5},"2015-10-01","External support for preparation","The Climate Change Focal Point (Rwanda Environmental Management Authority) and the National Implementing Entities will provide in-kind programme management, institutional coordination, and procurement services during the preparation phase.",null,null,null,null,0.4,null,null,null,null,0.4,0.31,null,0.09,null,{"$f":"11.3/1000","v":1.1300000000000001E-2},null,null,"Increasing the number of income generating activities for the communities and women, reduced household air pollution (particulates), provides the option for limited water irrigation, to increase agriculture productivity.","Financial participation of citizens in local energy generation plants gives local ownership.",10]
["NAMA0108","NS-209",null,"Promoting the use of Renewable Energy Solution for Households and Buildings","Africa","East Africa","Rwanda",null,"NAMA design and documentation (110 k$) on the institutional framework, implementation planning, financial structuring, support required, and MRV system. A comprehensive survey (35 k$) on technical feasibility of appropriate technology and appropriate financial mechanism to ensure international finance is used efficiently and in a sustainable manner.","Promoting the use of renewable energy technologies in rural and urban households and buildings across Rwanda: use solar water heaters in urban households and buildings (e.g. hotels, hospitals, hostels) and the use of standalone solar powered lighting kits in rural households, and small commercial establishments (e.g. shops, micro-enterprises etc.)  ","Rwanda Ministry of Infrastructure (MININFRA)","Solar","Residential & Service","Solar water heaters and lighting kits","2016-01-01",{"$f":"18/12","v":1.5},"2015-10-01","External support for preparation","The Climate Change Focal Point (Rwanda Environmental Management Authority) and the National Implementing Entities will provide in-kind programme management, institutional coordination, and procurement services during the preparation phase.",null,null,null,null,0.23499999999999999,null,null,null,null,0.23499999999999999,0.14499999999999999,null,0.09,null,{"$f":"0.643/15","v":4.2866666666666671E-2},null,null," Increased access to energy via renewable resources, improve indoor air quality, job creation."," The programme will transform a sector. Increased public awareness on new technologies."]
["NAMA0109","NS-210",null,"Energy Efficiency Improvement in the Tea and Coffee Sector in Rwanda","Africa","East Africa","Rwanda",null,"NAMA design and it’s documentation (110 k$), including the institutional framework, implementation planning, financial structuring, support required, and MRV system. Feasibility study (85 k$) on the best technologies available internationally for the tea and coffee sector and possible interventions in each of the tea and coffee processing units, including a sectoral wide technology use survey.","Focus on energy intensive activities in the tea and coffee industry, namely roasting, drying, processing and packaging. Demonstration of selected energy efficient technologies in existing production; to establish an energy efficiency standards for all new factories; promote international eco-labelling; promote energy management, auditing and reporting; and national best practice sharing. ","Rwanda Ministry of Infrastructure (MININFRA)","Agriculture","EE industry","Tea and coffe production","2016-01-01",{"$f":"18/12","v":1.5},"2015-10-01","External support for preparation","The Climate Change Focal Point (Rwanda Environmental Management Authority) and the National Implementing Entities will provide in-kind programme management, institutional coordination, and procurement services during the preparation phase.",null,null,null,null,0.28500000000000003,null,null,null,null,0.28500000000000003,0.19500000000000001,null,0.09,null,{"$f":"0.143/15","v":9.5333333333333329E-3},null,null,"Improvements in the tea and coffee sectors will increase employment opportunities and income generation.","Experimentation and innovation in the policy/programme."]
["NAMA0110","NS-211",null,"Bus Rapid Transit in Kigali (with linkage to non-motorized transport)","Africa","East Africa","Rwanda","Kigali","Preparation of NAMA Design Document (170 k$) covering institutional framework, implementation planning, baseline determination, emission mitigation, financial structuring, support required, and MRV system. The feasibility study (260 k$) will focus on a comprehensive technical, financial and institutional feasibility assessment for the measures.","Switch to low emissions, high efficiency transport modes, higher fuel and emissions standards for new vehicles, low sulphur diesel regulations, fleet renewal and scrappage regulations and emissions compliance certification and inspection. Including  dedicated “rush hour” bus lanes and integration with rural and inter-city bus routes. ","Rwanda Ministry of Infrastructure (MININFRA)","Transport","Public transport","Bus Rapid Transit","2016-01-01",{"$f":"18/12","v":1.5},"2015-10-01","External support for preparation","The Climate Change Focal Point (Rwanda Environmental Management Authority) and the National Implementing Entities will provide in-kind programme management, institutional coordination, and procurement services during the preparation phase.",null,null,null,null,0.52,null,null,null,null,0.52,0.43,null,0.09,null,{"$f":"1.26/15","v":8.4000000000000005E-2},null,null,"Reduced traffic congestion, air particulate emissions, noise levels, traffic accidents and fatalities, improved access to public transport for poor and handicapped, reduce household transport costs and time demands, increased use of non-motorized transport.","Modal shift in the transport sector encouraged. "]
["NAMA0111","NS-212",null,"Waste-to-Energy (WtE) and improved waste management practices in Kigali","Africa","East Africa","Rwanda","Kigali","Preparation of NAMA Design and Document (110 k$), and a full feasibility study (300 k$) that will focus on two key components of the NAMA, which are the technical feasibility and financial structure for implementing the WtE plant as an IPP, and the comprehensive study of waste characterization and collection/disposal volume.","The plant will have a capacity to process/combust up to 800 tons of solid waste per day,  and will be operated as an Independent Power Producer (IPP) as a fully private company receiving revenues through both Tipping Fees Agreements and Power Purchase Agreement under Rwandan regulations.","Rwanda Ministry of Infrastructure (MININFRA)","Waste","MSW","Incineration plant","2016-01-01",1.25,"2015-10-01","External support for preparation","The Climate Change Focal Point (Rwanda Environmental Management Authority) and the National Implementing Entities will provide in-kind programme management, institutional coordination, and procurement services during the preparation phase.",null,null,null,null,0.5,null,null,null,null,0.5,0.41,null,0.09,null,{"$f":"430/15/1000","v":2.8666666666666667E-2},null,null,"Harmful pollutants (NOx, SOx, CH4, and particulates) from fossil fuel electricity power generation in Rwanda will be reduced. Water and soil pollution due to reduced leachate effluents from landfills will be reduced.","Significant reduction of CH4 emission from waste. Existing infrastructure allow new sustainable actors/activities. The programme will be replicated, model for similar programmes in other areas.",15,{"$f":"75000/AM114","v":5000}]
["NAMA0112","NS-155",null,"Fuel Efficiency in Motor Vehicles","Africa","East Africa","Uganda",null,"The NAMA would reduce emissions on a per vehicle basis through a Fuel Efficiency Initiative designed to increase fuel efficiency in light- and heavy-duty vehicles.","Development of a fuel efficiency policy; development of a regulatory framework for vehicle age, vehicle emissions, and fuel standards; vehicle inspection and maintenance; tax incentives to encourage acquisition of more fuel efficient vehicles; fiscal incentives for a vehicle replacement scheme; and a public information campaign.","Rwanda Ministry of Infrastructure (MININFRA)","Transport","More efficient vehicles","New regulatory framework","2016-01-01",1,"2015-10-07","External support for preparation","This NAMA is linked to another NAMA (NS-158), \"Periodic vehicle inspection for emissions and roadworthiness\", which describes the: i) pre-Shipment inspection for vehicles imported into Uganda and ii) periodic inspection and certification for roadworthiness for vehicles in Uganda",null,null,null,null,0.49,null,null,null,null,0.49,0.49,null,null,null,2,null,null,"Improved health, improved local air quality, employment creation, foreign exchange savings. ","Multilevel interaction. Negative incentives that discourage the continuation of business as ususal.Introduction of technology standards/ performan-ce standards.",null,null,null,null,"More detailed NAMA proposal attached"]
["NAMA0113","NS-202",null,"Support to Integrated E-Waste Management System for State of Sabah, Malaysia","Asia & Pacific","Southeast Asia","Malaysia","Sabah","A systematic collection, transportation and recycling system of E-waste for the State of Sabah, Malaysia. The e-waste will be collected from from major cities and towns and transported to approved full recovery facilities in Peninsular Malaysia.","There are 3 stages with the following key objectives:\nStage 1 – To conduct pilot collection system at selected areas\nStage 2 – To link up with National Recycling Fund\nStage 3 – To extend the pilot collection to other cities","Environment Protection Department (EPD), Sabah","Waste","E-waste","Household Electrical and Electronic Waste ","2016-01-01",5,"2015-10-09","External support for implementation","Local government funded the study on Integrated Management of Electrical and Electronic Waste in Sabah from October 2013- December 2014. Preparation of this NAMA document was funded by the Low Emission Capacity Building Project (LECB).",null,null,null,null,40,"Government, private sectors and NGOs",32.5,null,null,7.5,7.5,null,null,null,{"$f":"467.845/15/1000","v":3.1189666666666668E-2},{"$f":"AH116*5","v":0.15594833333333333},"MRV for the whole collection, transportation and recycling system will be developed and achieved based on a web based application system.","Improve the working environment for the workers on-site as well as for the health of surrounding community."," Information campain performed.  First of its kind programme. The programme will be replicated, model for similar programmes in other areas."]
["NAMA0114","NS-203",null,"Detailed Study of Sustainable NAMA Financing Mechanism for Reactivating Renewable Energy-based CDM Project Activities in Malaysia","Asia & Pacific","Southeast Asia","Malaysia",null,"Support for reactivating CDM projects whose activities pertain to the generation, application and utilisation of RE. Prioritisation of CDM projects in accordance with a set of eligibility criteria for seeking support based on their status in the CDM project cycle and the type of funding support received. ","This includes registered projects in operation but without CER issuance, registered projects with CER issuances, registered projects yet to be operationalised, length of the remaining crediting period, projects with expired crediting period, and projects still in the validation stage.","Ministry of Natural Resources and Environment Malaysia","Renewables","All","Curtailed CDM projects","2016-01-01",{"$f":"8/12","v":0.66666666666666663},"2015-10-09","External support for preparation","Preparation of this NAMA document was funded by the Low Emission Capacity Building Project (LECB) in Malaysia implemented by the Ministry of Natural Resources and Environment Malaysia and United Nation Development Programme (UNDP).",null,null,null,null,0.1,null,null,null,null,0.1,0.1,null,null,null,null,null,null,null,"Learning from ongoing policies and actions. "]
["NAMA0115","NS-152",null,"Promoting cultivation of high-yielding upland rice in Uganda ","Africa","East Africa","Uganda",null,"Promoting cultivation of high-yielding upland rice. Facilitating rice farmers through training sessions, fertilizer subsidies, processing equipment, and access to markets. Explore appropriate and sustainable methods of producing paddy rice with lower methane emissions in Uganda in cases where upland rice does not yield.","Estimate GHG emissions for cultivation of upland and paddy rice in Uganda (40k$). Assessment of upland rice growing in Uganda, including  activities associated with research and promoting the crop work by MAAIF and other stakeholders (10 k$). Selecting an assessing intervention areas (20 k$).","Climate Change Department (CCD) in the Ministry of Water and Environment (MWE)","Agriculture","Rice crops","Upland rice","2016-01-01",1,"2015-10-16","External support for preparation",null,null,null,null,null,0,null,null,null,null,0,null,null,null,null,null,null,"Total acreage under paddy rice, and under upland rice. Methane emissions mg/m2 BAU, and % reductions associated with the different interventions.","High multiplier effect due to its long value chain, powerty reduction","The programme will transform a sector",null,null,null,null,"More detailed NAMA proposal attached"]
["NAMA0116","NS-213","NS-155","National Fuel Efficiency Initiative","Africa","East Africa","Uganda",null,"The Fuel Efficiency Initiative focuses on adoption of strategies, policies and regulations to promote ownership and use of cleaner and more fuel-efficient vehicle. The data and analysis will contribute to the development of the regulatory framework, identifying regulations and planning in the sector.","Baseline Studies (250 k$): Surveys of GHG emissions of the vehicle fleet for the BAU scenario. Policy and Regulatory Analysis (150 k$): Develop appropriate policies. Capacity Building (30 k$), Stakeholder Consultations (30 k$), Development of a MRV (30k$).","Climate Change Department (CCD) in the Ministry of Water and Environment (MWE)","Transport","More efficient vehicles","New regulatory framework","2016-01-01","?","2015-10-16","External support for preparation",null,null,null,null,null,0.49,null,null,null,null,0.49,0.49,null,null,null,null,null,null,null,null,null,null,null,null,"More detailed NAMA proposal attached"]
["NAMA0117","NS-217",null,"MULTIPURPOSE UTILIZATION OF BIOCHAR IN MONGOLIA","Asia & Pacific","East Asia","Mongolia",null,"a) Evaluating the availability and biochar from existing biomass; b) assessing technologies to produce and transport biochar and  constructing/purchasing a unit; c) implementing a mini-scale and a small- to medium-scale biochar production pilot. Charcoal is carbonized material from the wood, and biochar is produced from the other bio-sources. ","d) establishing the research plots to for the biochar to analyze costs, application, benefits, and changes in soil organic matter; and finally, e) analyzing the potential biochar-related revenues such as carbon credits, farming gains, and price of biochar.","Climate Change Project Implementing Unit (CCPIU) in Nature Conservation Fund (NCF)","Agriculture","Animals","Charcoal","2016-01-01",2,"2015-10-30","External support for preparation","Technical assistance requested from CTCN.",null,null,null,null,0.5,null,null,null,null,0.5,0.2,0.1,0.2,null,null,null,null,"Increase income for herders, vegetable gardeners, and forestry workers and create the green jobs in urban areas; Reduce soil degradation; increase water holding capacity in the soil. ","The programme will transform a sector"]
["NAMA0118","NS-220",null,"Sustainable and energy efficient building of Faculty of Architecture, Civil Engineering and Geodesy (FACEG) in Banja Luka","Europe & Central Asia","Europe","Bosnia and Herzegovina","Banja Luka","The main objective is the construction of environmentally friendly and energy efficient building of FACEG. Conceptualization and realization of a larger project of regeneration of the University campus and the waterside, according to BlueGreenDream principles.",null,"University of Banja Luka, Faculty of Architecture, Civil Engineering and Geodesy","Service","Demand-side EE","Energy efficient University","2016-01-01",2,"2015-11-19","External support for implementation","The first phase of the construction works are already finished. Since the architectural project of the building is already finished, along with the Study on the feasibility, energy efficiency and transfer of knowledge and technolog, there is no need for technological support.\n",null,null,null,null,15.480658483829238,"University of Banja Luka and Government of Republic of Srpska.",{"$f":"2.926549/0.773","v":3.7859624838292367},null,null,11.694696,11.668823,0,2.5873E-2,null,{"$f":"0.228/1000","v":2.2800000000000001E-4},null,null,"Increase of citizens' awareness of their responsibilities towards the environmental protection and sustainable use of energy by applying energy efficiency measures in building educational facilities. ",null,null,null,null,null,"Detailed building project attached","Banja Luka signed the Covenant of Mayors in 2009."]
["NAMA0119","NS-222",null,"Energy with Renewable Sources in non-interconnected areas","Latin America","South America","Colombia",null,"The Institute of Planning and Promotion of Energy Solutions for non-interconnected areas (IPSE) which manage 1450 villages. Goal is bringing electricity to these localities by individual power generation of photovoltaic technology, or by mini-networks with hybrid systems of power generation involving renewable energy sources.","An institutional arrangement between Ministry of Mines and Energy, IPSE and UPME (Mining and energy Planning Unit) will be established for the allocation of resources, effort and oversight of the projects mentioned above.","Ministry of Mines and Energy ","Renewables","Renewables","Off grid electrification","2016-01-01",{"$f":"8/12","v":0.66666666666666663},"2015-11-19","External support for preparation","Support from Olade to analyze information of non-interconnected areas in Colombia and prepare a NAMA proposal. Support from PNUMA in order to analyze posible business models for individual systems and/or mini-networks with hybrid systems.   "]
["NAMA0120","NS-221",null,"Public Lighting Energy Efficiency","Latin America","South America","Colombia",null,"Address barriers that prevent the successful implementation. Seeking to create market conditions that stimulate demand for such projects, both by municipalities and the private sector, and building trust among stakeholders","The NAMA considers four components: (I) Technical assistance and legal mechanisms, (II) Financial mechanism, (III) Monitoring, reporting and evaluation, (IV) Capacity building and communication mechanisms\n","FINDETER","Service","EE-service","Efficient street lighting","2016-01-01",10,"2015-11-19","External support for implementation","Colombia has approximately 1,400,000 streetlights, of which 610,000 are under concession contracts. Most of these lights are sodium vapor technology of high pressure. FINDETER has launched a line of special funding to finance energy efficiency investments in public lighting. ",null,null,null,null,{"$f":"Z123+AB123+AC123","v":65},null,52,null,null,{"$f":"SUM(AD123:AF123)","v":13},13,null,null,null,0.112876,null,"Number of cities or municipalities intervened, Amount of luminaires replaced, Public lighting consumption.  \n","Increased security in public spaces, Reduction in traffic accidents, Employment generation, Improving the quality of life of citizens, Reduction in public lighting costs for the municipalities of Colombia.\n",null,null,null,3.4492000000000002E-2,null,"FINDETER-IDB Market Study on Energy Efficiency in Public Lighting Sector in Colombia was extrapolated to 59 cities with over 100,000 inhabitants (not Bogota nor Medellin)."]
["NAMA0121","NS-219",null,"Productive and Technological Reconversion of Colombia's Panela Sector ","Latin America","South America","Colombia",null,"Implement strategies towards GHG and pollutant reduction across the sector, focusing on three main technology areas: crop processes, mills technological upgrading and use of sub-products. The expected outcome is to create a transformational effect on the environment while generating positive socio-economic benefits.","Plant resettlement and soil renewal through production intensification, increasing vegetation cover and uptake of CO2; Implement Thermal recirculation, Bagasse feeders’ to eliminate residence time and methane emissions, Replacing internal combustion engines with electric, Wastewater treatment for crop irrigation; Residual biomass from harvesting process as an energy source. ","Federación Nacional de Productores de Panela FEDEPANELA (National Association of Panela Producers)","Agriculture","Sugar","Energy efficiency","2016-01-01",1,"2015-11-19","External support for preparation",null,null,null,null,null,0.2,null,null,null,null,0.2,0.2,null,null,null,4.1680000000000001,null,null,null,null,null,null,null,null,"The sector provides employment to 350,000 families in 70,000 farms and 21,000 panela mills (plan to reduce the number of mills to 8,000). The panela sector is responsible for the increasing deforestation and catchment area sedimentation in Colombia. It is estimated around 70% of all car tyres used in Bogota are burnt in boilers for the production of panela. 289 pages Nino document attached."]
["NAMA0122","NS-218",null,"Colombian NAMA for the domestic refrigeration sector","Latin America","South America","Colombia",null,"(a) a ban of HFCs, (b) production line conversions using hydrocarbon refrigerants instead of HFC and changed product design to improve energy efficiency (c) an innovative replacement program including with incentives for low-income households (d) implementation of a sustainable scheme where producers and importers are given responsibility for domestic refrigerators at the end of their lives.","1: Policy framework for the transformation of the domestic refrigeration sector is established; 2: Producer are designing and producing climate friendly energy efficient refrigerators; 3: New for old replacement programme is established; 4: Old fridges are returned and processed in a recycling scheme; 5: Cross sectoral capacity building","Ministry of Environment and Sustainable Development (MADS - Colombia) - Climate Change Division, Technical Ozone Unit (UTO) and Deutsche Gesellschaft für Internationale Zusammenarbeit (GIZ) GmbH Acting as Delivery Organization","Service","EE-service","Efficient refridgerators","2017-01-01",5,"2015-11-25","External support for implementation","Current emissions from the domestic refrigeration sector are in the magnitude of 4.5 Mt CO2eq (2014) and are projected to double by 2030. Emissions stem from the use of high GWP refrigerants (~ 15%) and energy consumption (~85%). ","Supported",null,"S-62",{"$f":"9/0.84","v":10.714285714285715},156.53298835705044,null,{"$f":"112/0.773","v":144.89003880983182},null,null,11.642949547218628,{"$f":"6/0.773","v":7.7619663648124186},{"$f":"3/0.773","v":3.8809831824062093},null,null,3.8,null,"The Project will utilise the standardised Result-based Monitoring system used by GIZ and partners","Social development:\n- Employment and education (high): Training and education enables managers, engineers, technicians and servicing personnel in the domestic refrigeration sector to stay up-to-date and work in accordance with international trends, regulations and standards. Certified training increases the chances of proper employment and a better income;\n- Health (medium): Reliable cooling ensures safe food for the low-income households. Proper waste management of EOL equipment will reduce health risks;\n- Low-income household energy costs that are associated with the energy consumption of domestic refrigerators are reduced by 50% (after repayment time). \nEconomic development:\n- Qualification and certification of local technicians (high): Creation of employment and skilled set of technicians through training measures (production, service and financial support sector);\n- Raise sustainable competitiveness of producers (high);\n- Reduced national expenditures for energy subsidies (reduced energy consumption due to higher efficiency) which can be used to promote green fridges and proper waste management;\n- Availability allows for CSR (green brands) (medium);\n- Low-income household energy costs that are associated with the energy consumption of domestic refrigerators are reduced by 50% (after repayment time) \n- National savings on energy (high);\n- The purchase of hydrocarbon refrigerants is cheaper than the purchase of HFC-refrigerants.\n- Production and availability (medium): The production of natural refrigerants is less costly and consumes far less energy than the production of synthetic refrigerants. The handling of natural substances cannot be restricted by patents, so they can be processed and sold by any company in any country locally.\nEnvironmental protection:\n- Emission reduction (medium): Using natural refrigerants reduces direct emissions of HFC, which harm the climate. Highly efficient refrigerators based on natural refrigerants have lower energy consumption and therefore reduce indirect emission (energy supply);\n- Preservation of valuable raw materials (medium): unlike fluorinated substances which are produced from fluorspar, natural refrigerants do not deplete resources;\n- Less pollution and toxic waste (high): Natural refrigerants do not produce persistent wastes in the atmosphere;\n- Less food waste through better cooling.\nNational benefits:\n- Colombia to gain international recognition for setting the pace as best practice example to act on the domestic refrigeration sector, considering the entire life cycle; \n- Colombia to gain international recognition as a frontrunner in South America for the phase down of HFCs;\n- Colombia to reduce energy consumption with the introduction of efficient equipment, thereby achieving affordable and sustainable energy flows due to high energy efficiency;\n - Monetary savings in the national budget due to reduced energy subsidies for low-income households. "]
["NAMA0123","NS-225",null,"Sustainable Bovine Livestock","Latin America","South America","Colombia",null,"The NAMA aims to diminish the GHGs generated in cattle production and increase the carbon sinks of the pasture agro-ecosystems, through a productive management system at a regional level, promoting conservation and/or restoration of natural ecosystems, encouraging sustainable productive landscapes through the harmonization of the different public policy tools. ","The specific goals of the project are:\n -To intensify in a sustainable manner the cattle raising production by implementing intensive and non-intensive silvopastoral systems, and efficient management of the productive system\n-Earmark areas in the cattle farms for conservation and/or restoration of natural ecosystems\n-Manure management and utilization of the methane gas generated in the sacrifice lots\n","Ministry of Agriculture and Rural Development of Colombia (Ministerio de Agricultura y Desarrollo Rural de Colombia)","Agriculture","Animals","Methane avoidance and forests","2016-01-01",1,"2015-11-25","External support for preparation","The Ministry of Agriculture and Rural Development has promoted investigations under an agreement with CIAT (International Center for Tropical Agriculture) which have been the based for proposing the NAMA's activities; strong commitment and participation during the conceptualisation of the NINO has been recieved from both institutions. The Project has also recieved technical support from CIPAV and the Colombian Sustainable Livestock Project, a GEF project lead by FEDEGAN (National Federation of Cattle Ranchers). \nAdditionally the NAMAs Information Note has been design with the support of the Colombian Low Carbon Development Strategy, a programme lead by the Ministry of Environment and Sustainable Development which is supported by UNDP's LECB programme and MAPS programme.",null,null,null,null,0.5,null,null,null,null,0.5,0.5,null,null,null,{"$f":"6+4+1.228","v":11.228},null,null,"Economic:\n - Improvements in the bovine livestock production returns in Colombia \n  - Improve the competitiveness of the sector\n- Increase of income\n- Reduce supply costs\n- Reduce the climate variability risk\n Social:\n- Ease formalisation of workers\n- Reduction of poverty\n- Food security\n- Increase of technical capability of bovine livestock \n- Cobenefits of adaptation to climate change\n Environmental:\n- Improvements in hydrological cycles\n- Soil conservation \n- Biodiversity protection\n Other Co-benefits:\n- Strengthening of the agenda between Ministries of Environment and Agriculture.\n- Increasing land uses based in land vocation, therefore reducing land use conflicts.\n",null,null,null,null,null,"NINO Ganadería Bovina Vfinal.pdf attached"]
["NAMA0124","NR-224",null,"Implementation of Feed-in Tariff Mechanism in Malaysia","Asia & Pacific","Southeast Asia","Malaysia",null,"The scheme targets to achieve total approved RE capacity for grid connection to reach 2,080 MW generating 11.3 GWh/year, accounting for 11% of total electricity generation in 2020. Under the scheme, the duration (FiT Effective Period) is 16 years for biomass and biogas, and 21 years for small hydropower, solar photovoltaic and geothermal technologies.","The renewable sources eligible under the FiT scheme are comprised of biogas (agroindustrial waste and landfill gas), biomass (agrowaste and municipal solid waste), small hydropower, solar photovoltaic and geothermal. It is stipulated that these must be indigenous renewable sources and must not be imported from other countries.","Sustainable Energy Development Authority (SEDA) of Malaysia","Energy supply","Renewable energy","Electricity generation","2011-01-01",30,"2015-12-03","For recognition","SEDA, a statutory body incorporated pursuant to the Sustainable Energy Development Authority Act 2011 (Act 726), was established to administer and manage the implementation of the FiT mechanism.",null,null,null,null,0,null,null,null,null,0,null,null,null,null,{"$f":"113.241/25","v":4.5296399999999997},null,null,null,"Feed-in Tariffs with a purchase obligation, stable tariff over a long period of time."]
["NAMA0125","NS-226","NS-199","Rural Electrification with Renewable Energy in The Gambia","Africa","West Africa","Gambia",null,"Phase 1 will include the establishment of two types of ventures: RE Community Energy Centres (RE-CEC) and RE Micro-Grids (RE-MGs). Phase 2 ventures will comprise RE systems which will displace thermal generation at existing regional grids (referred to as RE Displacement Systems – RE-DIS) and RE independent power producers (RE-IPPs).","The CapDev programme for implementation will support:\n(i) implementing a NAMA working network and processes (technical and financial project cycle), including staff training; \n(ii) implementing NAMA related regulations and designing the contractual conditions; \n(iii) preparing NAMA project documentation (application forms, call and tender documents, pro-curement rules, monitoring, evaluation and reporting forms, etc.);","Ministry of Environment, Climate Change, Water, Forestry and Wildlife","Renewables","Off-grid renewables","Solar","2015-12-01",15,"2015-12-14","External support for implementation","The NAMA will be financed through national and international public funds (grants and loans) and private sector contributions and consumer payments. ",null,null,null,null,23.132000000000001,"Finance from the national budget, cost reduction measures and consumer payment schemes, through direct investment grants, the RE Fund and a loan facility.",{"$f":"23.132-11.43","v":11.702000000000002},null,null,11.43,9.8610000000000007,null,1.569,null,12,null,"AMS-I.L Electrification of rural communities using renewable energy, Version 3 will be used to monitor GHG emission reductions."]
["NAMA0126","NS-227",null,"NAMA for Rural Development in Lao PDR","Asia & Pacific","Southeast Asia","Lao PDR",null,"The overall target of the NAMA is to support Lao PDR in achieving the goal defined in the Rural Electrification Master Plan provide access to electricity to 90% of households in Lao PDR by 2020. In this first phase the NAMA aims to establish 8 mini grids using renewable energy sources (hydro and solar).","Rural communities/tourism, agricultural facilities/health centers/schools and literacy centers are the focus of these mini grids due to their demand for electricity for lighting, cooling and appliances. The mini grids will provide electricity for lighting, radio and phone charging for households, and for service and production activities.\n","Institute of Renewable Energy Promotion","Renewables","Off-grid renewables","Solar & Hydro","2016-01-01",1,"2015-12-17","External support for preparation","The Institute for Renewable Energy Promotion will provide national technical support in addition to the required international support. Even though the electrification rate in Lao PDR was 72.5 per cent of households in 2010, one third of the population still remain without proper access to electricity.",null,null,"S-186",7.0000000000000007E-2,7.0000000000000007E-2,null,0,null,null,7.0000000000000007E-2,7.0000000000000007E-2,null,null,null,null,null,null,"The NAMA is designed with sustainable development benefits in mind and the design includes a focus on interventions which allow for income- generating activities which can create business opportunities for individuals, households and communities.",null,null,null,null,null,null,"According to updated the Rural Electrification Master Plan (REMP), 2010 the Government has set the national electrification target at a household level to 94 percent by 2020."]
["NAMA0127","NS-229",null,"Efficient use of biomass for equitable, climate proof and sustainable rural development","Europe & Central Asia","Central Asia","Georgia",null," Promoting the use and up-scaling of Solar Water Heaters (SWH), Fuel Efficient Wood Stoves (FEWS), Energy Efficient Insulation (EEI) Measures in rural households and public buildings and sustainable forest management.","Planned measures within pilot project are the installation of SWH and FEWS and implement EEI measures in 11.500 households, supported with a financial mechanism and sustainable forest management in 6 rural areas of Georgia.","Women in Europe for a Common Future (WECF)","Forestry ","Biomass energy","Solar","2016-01-01",6,"2016-01-14","External support for implementation",null,null,null,null,null,16.429494999999999,"Average 60% of the costs of the 11,500 SWH and FEWS and 100% of EEI will be contributed by households (est. 7,360,000 Euro) and state funding (est. 260,000 Euro). Additionally, at least 85,000 Euro will be private investment of the commercial production unit.",{"$f":"16.429495-AC130","v":9.9611889999999992},null,null,6.4683060000000001,3.4928849999999998,2.9754209999999999,null,null,3.5999999999999997E-2,null,null,"Improved living standards, Reduced labor burden for women, Reduced rural poverty by decreasing energy costs, Enhanced economic development and strengthened private sector.",null,null,null,null,null,"Appendix: GIZ Case study: Lessons from creating access to low-cost solar water heaters as the basis for the first gender-sensitive Nationally Appropriate Mitigation Action (NAMA)  in Georgia"]
["NAMA0128","NS-230","NS-232","Rural Electrification in Vanuatu","Asia & Pacific","Southeast Asia","Vanuatu",null,"The overall target is to support Vanuatu in achieving the goal defined in the National Energy Road Map (NERM), namely to provide access to electricity to all households in Vanuatu. The NAMA will reduce GHG emissions through the replacement of fossil fuels with renewable energies.","The NAMA covers two interventions. Under 1) five micro grids will be established. Rural communities/tourism and agricultural facilities/health centres/schools are the focus due to their demand for electricity for lighting, cooling and appliances. The micro grids will use solar, wind, hydro. 2) covers extension of existing electricity grids on different islands.","Ministry of Climate Change and Natural Disasters","Energy supply","Renewable energy","Electricity generation","2016-03-01",0.5,"2016-01-25","External support for preparation","Build on National Energy Road Map (NERM).  In total the NAMA implementation will cost 5.5 MUS$, the Vanuatu government will provide providing around 12 per cent and the private sector is expected to contribute around 6 per cent. The remaining 82 per cent is expected to come from NAMA donors. ",null,null,"A NAMA design document prepared by UNDP with GEF support is attached to NS-232.",8.1000000000000003E-2,7.4999999999999997E-2,null,null,null,null,7.4999999999999997E-2,7.4999999999999997E-2,null,null,null,null,null,"AMS-I.L.: Electrification of rural communities using renewable energy, Version 03.0\" will be used to monitor GHG emission reductions. "]
["NAMA0129","NS-232","NS-230","Rural Electrification in Vanuatu","Asia & Pacific","Southeast Asia","Vanuatu",null,"The overall target is to support Vanuatu in achieving the goal defined in the National Energy Road Map (NERM), namely to provide access to electricity to all households in Vanuatu. The NAMA will reduce GHG emissions through the replacement of fossil fuels with renewable energies.","The NAMA covers two interventions. Under 1) five micro grids will be established. Rural communities/tourism and agricultural facilities/health centres/schools are the focus due to their demand for electricity for lighting, cooling and appliances. The micro grids will use solar, wind, hydro. 2) covers extension of existing electricity grids on different islands.","Ministry of Climate Change and Natural Disasters","Energy supply","Renewable energy","Electricity generation","2016-03-01",5,"2016-01-25","External support for implementation","A NAMA design document prepared by UNDP with GEF support is attached.",null,null,null,null,{"$f":"Z132+AB132+AC132","v":5.8},null,null,null,null,{"$f":"SUM(AD132:AF132)","v":5.8},4.5,null,1.3,null,1.35E-2,null,"AMS-I.L.: Electrification of rural communities using renewable energy, Version 03.0\" will be used to monitor GHG emission reductions. "]
["NAMA0130","NS-228",null,"Energy Efficient Refurbishment in the Georgian Public Building Sector","Europe & Central Asia","Central Asia","Georgia",null,"Long term transformation of building energy efficiency creating regulatory structures to support deep energy efficient refurbishment of the existing building stock. Piloting the renovation of key public buildings in Covenant of Mayors (CoM) cities as well as central government facilities. Later extending the process to the residential sector.","NAMA consists of two phases: phase I -readiness phase (developing the capacity in the Georgian public sector to be able to pilot renovation activities and energy performance contracting in public buildings) and \nphase II-implementation phase targeting the full renovation of 50 000 to 60 000 sq. meter in buildings including EE measures (Euro 300 per sq.m). \n","The Ministry of Environment and Natural Resources Protection (UNFCCC Focal Point), The Ministry of Economy and Sustainable Development, The Ministry of Energy ","Service","EE-service","Public buildings","2016-01-01",5,"2016-02-15","External support for implementation","Through the Covenant of Mayors a number of cities (10 self-governing cities and 4 municipalities) have demonstrated pro-activity in the development of sub-national agendas. Support for the development of the NAMA proposal was provided through Mitigation Momentum project, which is part of the International Climate Initiative (IKI).",null,null,null,null,24.450194,null,null,null,null,24.450194,{"$f":"24.450194-AE133-AF133","v":20.957309135834411},{"$f":"1.8/0.773","v":2.3285899094437257},{"$f":"0.9/0.773","v":1.1642949547218628},null,1.2E-2,null,null,"Job creation, energy security, "]
["NAMA0131","NS-223",null,"TRANSPerú - Sustainable Urban Transport NAMA","Latin America","South America","Peru",null," The NAMA comprises six major mitigation areas: Integrated public mass transport system in Lima/Callao; Non-motorized transport in Lima , Institutional development to improve urban transport management in Lima/ Callao , Vehicle homologation and fuel efficiency for light vehicles; Modernization of the public transport vehicle fleet; Support to local governments to strengthen sustainable urban transport.","The lion’s share of the preparation and implementation costs arises from the metro and BRT lines to be constructed within the Lima Metropolitan Region (approximately USD 5.9 billion).","Ministry of Transport and Communications","Transport","Metro & Bus Rapid Transit","Compact cities, where non-motorized and transit modes are easier to use. ","2016-03-01",3,"2016-02-16","External support for implementation","Part of the INDC for Peru.","Supported",null,"S-62",{"$f":"9/0.84","v":10.714285714285715},6202,"The Government of Peru has allocated significant amounts to the policy matrix, mainly to the integrated mass transportation system in Lima (roughly USD 4.2 billion). ",6095.5," The German Government financed programme IKLU/DKTI[2] has approved financial resources for the Set Up of the National Programme for Sustainable Urban Transport ( EUR 60 million). ",null,106.5,95,11.5,null,null,{"$f":"(2.03-1.1)/2/3","v":0.15499999999999994},null,null,"High decrease in travel times and associated economic benefits by the building of a metro, optimized routes and bus sizes, improved intermodality, urban mobility planning.\n•Reduced life-cycle costs of vehicle fleet by increase of vehicle efficiency.\n•Reduced societal health costs associated with reduced stress levels from traffic noise/air pollution.\n•Reduced casualties and injuries by accidents by reduction in traffic and modernized fleet.\n•Increased competitiveness of cities as attractive places for business/families.\n•Social inclusion of people of vulnerable groups by provision of affordable public transport, well-designed non-motorized transport, and connection of suburbs and the city center.\n•Increased employment and local businesses due to infrastructure investment."]
["NAMA0132","NS-236",null,"Solar Energy Development in Uzbekistan","Europe & Central Asia","Central Asia","Uzbekistan",null,"General solar development.","100MW PV in Samarkand planned.","Join Stock Company Uzbekenergo","Renewables","Solar","Solar ","2016-03-01",15,"2016-02-17","For recognition","Based on the Roadmap for Solar Energy Development in Uzbekistan, prepared by the Asian Development Bank",null,null,null,null,0,null,null,null,null,0,null,null,null,null,10.8,null,null,null,null,null,null,null,null,"Solar Road Map attached"]
["NAMA0133","NS-237","NS-227","NAMA for Rural Development in Lao PDR ","Asia & Pacific","Southeast Asia","Lao PDR",null,"The overall target of the NAMA is to support Lao PDR in achieving the goal defined in the Rural Electrification Master Plan provide access to electricity to 90% of households in Lao PDR by 2020. In this first phase the NAMA aims to establish 8 mini grids using renewable energy sources (hydro and solar).","Rural communities/tourism, agricultural facilities/health centers/schools and literacy centers are the focus of these mini grids due to their demand for electricity for lighting, cooling and appliances. The mini grids will provide electricity for lighting, radio and phone charging for households, and for service and production activities.\n","Institute of Renewable Energy Promotion","Renewables","Solar","Solar ","2016-03-01",5,"2016-03-22","External support for implementation",null,null,null,null,null,2.9225379999999999,null,{"$f":"2.922538-AC136","v":0.42668799999999996},null,null,2.4958499999999999,2.4958499999999999,null,null,null,null,null,"AMS-I.L Electrification of rural communities using renewable energy, Version 3 will be used to monitor GHG emission reductions."]
["NAMA0134","NS-238",null,"Support to Sierra Leone Preparation of Nationally Appropriate Mitigation Action ","Africa","West Africa","Sierra Leone",null,"Support to: 1) To mobilize financial resources to support activities in the preparation of the country nationally appropriate mitigation action (NAMA). 2) To solicit technical support in facilitating the preparation of the country nationally appropriate mitigation action (NAMA). 3) To support the development of a well-articulated nationally appropriate mitigation action (NAMA).","General support to develop NAMAs needed.","Meteorological Department ","All","All","All","2016-04-01",0.5,"2016-04-07","External support for preparation","A work plan is attached.",null,null,null,null,0.15,null,null,null,null,0.15,0.15]
["NAMA0135","NS-240",null,"National Solar Water Heating Programme","Africa","Southern Africa","Zimbabwe",null,"The NAMA will replace electric geysers with solar geysers that will reduce electricity consumption by households, institutions and commercial services sectors by up to 40%. ","The programme consists of a pilot and full implementation phases. The pilot phase seeks to retrofit 1000 domestic electric geysers with solar water heaters in 1,000 households. In the full programme about 823,000 solar water heaters will be installed in the following ten years.","Ministry of Energy and Power Development","Renewables","Solar","Solar water heaters","2016-07-01",0.5,"2016-05-11","External support for preparation","The National Solar Water Heating Programme was launched on 30 September 2015.",null,null,null,null,0.5,null,null,null,null,0.5,null,0.35,0.15,null,2.8879999999999999]
["NAMA0136","NS-241",null,"Provision of Sustainable Energy in Zimbabwe through use of Biogas ","Africa","Southern Africa","Zimbabwe",null,"The overall aim is: 1) Creating awareness of biogas technology in small holder dairy and piggery farming areas and in rural areas; 2) Training builders in the construction and installation of digesters as well as loading and maintenance, this will generate some income for the trainees; and 3) Developing and adapting other appliances for use with biogas."," In the first ten years it is expected that 7 800 domestic digesters will be constructed. It is anticipated that 100 institutional digesters (minimum size, 50m3) will be constructed in the next 5years, and 100 municipal digesters will be constructed in the next 5 years (minimum size 200m3).","Ministry of Energy and Power Development","Waste","Manure & domestic manure","Biogas","2016-07-01",0.5,"2016-05-11","External support for preparation","In the domestic sector over 200 digesters have been constructed so far. Currently 800m3 (4x 200m3) digesters are being constructed in Harare’s major vegetable market, Mbare. Zimbabwe Agenda for Sustainable Socio-Economic Transformation’s targets 1250 digesters installed by 2018.",null,null,null,null,0.30000000000000004,null,null,null,null,0.30000000000000004,null,0.2,0.1]
["NAMA0137","NS-242",null,"Nationally Appropriate Mitigation Actions in the Construction Sector in Mongolia","Asia & Pacific","East Asia","Mongolia",null,"This objective will be achieved by removing barriers to increased adoption of energy efficiency technology in construction sector through three components; i) establishment of baseline energy consumption and GHG emission in the construction sector ii) development and implementation of NAMA in the construction sector iii) MRV system for NAMA.",null,"Ministry of Construction and Urban Development / Ministry of Nature, Green Development & Tourism","Industry","Construction sector","EE in construction","2016-07-01",{"$f":"40/12","v":3.3333333333333335},"2016-05-13","External support for preparation","The total cost of the NAMA is estimated at US$ $8,169,863. This includes investment costs as well as extensive capacity-building efforts. In total, the Government of Mongolia is committed to providing $3,350,000; GEF support is $1,269,863 and $3,450,000 from the private sector. ",null,null,"S-63",{"$f":"X140","v":0.1095},0.1095,null,null,null,null,0.1095,0.1095,null,null,null,0.02,null,null,"Both public and private sector decision makers, practitioners, construction sector fraternity, will be trained."]
["NAMA0138","NS-243",null,"Lighting system optimization by replacing incandescent and other lights with energy efficient LED lights","Africa","Southern Africa","Zimbabwe",null,"Replace incandescent lights and other lights in households, government and commercial premises by LED lights.","The planned retrofitting of 250W with 90W LED lights in the City of Harare will reduce electricity consumption by at least 40 GWh/yr and GHG emissions by at least 23 443 tCO2. There are a lot of issues that include technology transfer, financing the completion of the programme and awareness creation to get the product accepted by the general public.","Ministry of Energy and Power Development","Residential & Service","EE lighting","LED lights","2016-07-01",0.5,"2016-05-11","External support for preparation"," The Ministry of Energy and Power Development has carried out a pilot project at its head office, where incandescent bulbs have been replaced by LED lights. The National Electricity Utility and the Energy Regulator have done likewise at their head quarters. ",null,null,null,null,0.5,null,null,null,null,0.5,null,0.35,0.15]
["NAMA0139","NS-244",null,"Efficient Biomass Stove Development, Dissemination and Commercialisation","Africa","Southern Africa","Zimbabwe",null,"The programme aims at: 1) Reducing loss of woodlands which are carbon sinks that help to capture carbon; 2) Creating awareness of advantages of  use of efficient cook stoves as compared to open fire places; 3) Training of local artisans and builders in the construction of efficient cook stoves;",null,"Ministry of Energy and Power Development","Residential & Service","Stoves","Stoves","2016-07-01",{"$f":"10/12","v":0.83333333333333337},"2016-05-11","External support for preparation","It is estimated that more than 6 million tonnes of wood fuel are consumed annually when the sustainable output of natural forests is 4.6 million tonnes translating to a loss of 330 000 hectares of forest area or over 60 million trees per year.",null,null,null,null,0.5,null,null,null,null,0.5,null,0.35,0.15]
[]
[null,null,null,"These official NAMAs are submitted to the NAMA-registry at www4.unfccc.int/sites/nama/SitePages/Home.aspx,where you can also submit your NAMA to the UNFCCC",null,null,null,null,null,null,null,null,null,null,null,null,null,null,null,null,null,null,{"$f":"SUM(W4:W143)","v":133.37337295238092},{"$f":"SUM(X4:X143)","v":39456.613647804203},null,null,null,null,{"$f":"SUM(AC4:AC143)","v":8156.1227690977685},{"$f":"SUM(AD4:AD143)","v":6433.3223927857989},null,null,null,{"$f":"SUM(AH4:AH143)","v":304.32566353990478}]

{"sheet":"Support","index":1,"n_rows":23,"n_cols":23,"rows_kept":23,"cut":false,"hidden":false,"merged":[[22,2,22,3]]}
[{"$f":"+Submissions!A1","v":"The NAMApipeline was produced by Jørgen Fenhann, UNEP DTU Partnership, 1. May 2016, jqfe@dtu.dk, Phone (+45)40202789"}]
[]
["ID","Ref","Title","Donor Country","Type of action","Implementing Agency","Countries supported","Sector","Type","Sub-type","Start year for support","Number of years for support","Date of submission","Kind of Support","NAMAs supported","Type of financial support","Total support offered  MUS$/yr","Financial support MUS$","Technical support MUS$","Capacity Building support MUS$","MRV indicators required","SD indicators required","Reference"]
["Support0001","S-54","Climate-related ODA funding","Germany","Technological support, Capacity building support","German Federal Ministry for Economic Cooperation and Development (BMZ), through GIZ and KfW","All","All","All","All",null,null,"2013-08-06","Support for preparation",null,"Grant,Concessional loan",null,null,null,null,null,null,"www.giz.de/Themen/en/26097.htm                                                           www.kfw-entwicklungsbank.de/International-financing/KfW-Entwicklungsbank/)."]
["Support0002","S-55","International Climate Initiative (IKI)","Germany","Support to LEDS, Development of NAMAs, Implementation of ambitious components of NAMAs","Federal Ministry for the Environment, Nature Conservation and Nuclear Safety","All","All","All","All",null,null,"2013-08-06","Support for preparation",null,"Grant, Loan",null,null,null,null,null,null,"www.international-climate-initiative.com/en/nc/projects/projects/"]
["Support0003","S-62","NAMA Facility","Germany, United K., Denmark, EU","Financial and technical support to NAMAs across a range of sectors, focusing on the mobilization of capital investments for transformational change","German Federal Ministry for the Environment, Nature Conservation, Building and Nuclear Safety (BMUB), the UK Department of Energy and Climate Change (DECC), the Danish Ministry of Climate, Energy and Building (MCEB) and the Ministry of Foreign Affairs as well as the European Commission","All","All","All","All","2013-07-01",null,"2013-08-13","Support for implementation","NS-108, NS-127, NS-198, NS-72, NS-65, NS-8, NS-218, NS-223","Grant,Concessional loan",{"$f":"R6","v":159.21428571428575},{"$f":"14/0.84+18.5+14.7/0.84+7/0.84+14/0.84+15/0.84+9/0.84+13/0.84+13.5/0.84+9/0.84+9/0.84","v":159.21428571428575},null,null,null,null,"www.international-climate-initiative.com/en/issues/nama-facility/"]
["Support0004","S-63","Global Environmental Facility (GEF)","GEF","Reducing or avoiding greenhouse gas emissions in the areas of renewable energy; energy efficiency; sustainable transport; and management of land use, land-use change ,and forestry (LULUCF)","Global Environment Facility Secretariat","All","All","All","All",null,null,"2013-08-20","Support for preparation and implementation","NS-95, NS-121, NS-124, NS-201, NS-242","Grant",{"$f":"R7","v":13.2395},{"$f":"0.1+3.5+5.93+3.6+0.1095","v":13.2395},null,null,null,null,"www.thegef.org/gef/guidelines/"]
["Support0005","S-74","Latin American Investment Facility (LAIF)","EU","LAIF supports infrastructure projects in different sectors and private sector development.\n\n","EU Directorate-General EuropeAid Development and Cooperation","Latin America and the Caribbean","Energy supply, Transport",null,null,null,null,"2013-11-06","Support for implementation",null,"Grant, Loan",null,null,null,null,null,null,"ec.europa.eu/europeaid/where/latin-america/regional-cooperation/laif/index_en.htm "]
["Support0006","S-75","EU-Africa Infrastructure Trust Fund (ITF)","EU and member countries","ITF is a fund of grant resources provided by the EU. The grant resources are blended with long-term loan financing from selected development finance institutions, helping to mobilise additional project finance and foster sustainable economic growth.\n\n","EU-Africa Infrastructure Trust Fund; c/o European Investment Bank","African regional projects","Energy supply, Transport",null,null,null,null,"2013-11-05","Support for implementation",null,"Grant, Guarantee,Equity",null,null,null,null,null,"Projects must demonstrate a development impact","www.eu-africa-infrastructure-tf.net/about/FAQ/index.htm\nwww.eu-africa-infrastructure-tf.net/attachments/leaflet-steps-and-timing-for-submitting-a-go-for-itf-approval.pdf "]
["Support0007","S-76","Neighbourhood Investment Facility (NIF)","EU","Cover investment needs for infrastructures in transport, energy, environment and social issues (e.g. construction of schools or hospitals)","EU Directorate-General EuropeAid Development and Cooperation","Eastern Europe, Middle East, North Africa","Energy supply, Industry, Forestry, Transport, Waste management",null,null,null,null,"2013-11-06","Support for preparation",null,"Grant, Guarantee,Equity",null,null,null,null,null,null,"ec.europa.eu/europeaid/where/neighbourhood/regional-cooperation/irc/investment_en.htm"]
["Support0008","S-84","Austrian NAMA Initiative","Austria","Maximum of financial support = 500,000 Euro. Funding for technical assistance and capacity building for building up the relevant institutional and regulatory capacities in eligible countries in the context of the supported NAMA activities. ","Kommunalkredit Public Consulting GmbH","Focus on Africa, LDCs & SIDS"," Small-scale renewable and energy-efficient technologies ",null,null,null,null,"2014-03-13","Support for preparation and implementation",null,"Grant, preparation for carbon finance",null,null,null,null,null,"Projects and programmes, that foster access to sustainable energy, should be at the core of the initiative"]
["Support0009","S-99","Support for Activities related to sustainable Management of Forests","Austria","Development of national policies and strategies for mitigating and adapting to climate change impacts on forests","Kommunalkredit Public Consulting GmbH","Georgia","Forestry","Sustainable Management of Forests","Sustainable Management of Forests",null,null,"2014-05-15","Support for implementation","NS-85","Grant",{"$f":"R12","v":1.9404920000000001},1.9404920000000001]
["Support0010","S-122","ODA for Climate Change Measures","Japan","Development of national/local climate change policy and strategies, development of NAMA plans, implementation of individual mitigation projects including REDD+, supports for development of national GHG inventory, trainings, etc.).","Japan International Cooperation Agency (JICA)","All","All","All","All",null,null,"2014-07-09","Support for preparation","NS-31, NS-32, NS-33","Grant & Concessional loan",{"$f":"R13","v":0.96},0.96,null,null,null,null,"www.jica.go.jp/english/our_work/types_of_assistance/partnership/index.html"]
["Support0011","S-143","Spanish NAMA Platform","Spain","Identifying the support and cooperation instruments available at the Spanish Administration that could fit the NAMA´s needs, and identifying the technological solutions and potential actors for every step of the implementation.","Government of Spain, ICEX Spain Trade and Investment (Ministry of Economy and Competitiveness), together with Spanish Climate Change Office and the Spanish Agency for International Development Cooperation.","All","All","All","All",null,null,"2014-10-26","Support for preparation","NS-4","Loans, Consessional loans, Guarantee"]
["Support0012","S-130","Inter-American Development Bank (IDB)- Support for the design, development and implementation of NAMAs in the LAC region ",null,"Financing NAMA development: support prioritization, preparation. Helping develop national or sectorial plans. Sharing knowledge and best practices of the region and capacity building. Helping leverage international financing.","Inter-American Development Bank (IDB)","IDB 26 member countries in Latin America and the Caribbean ","All","All","All",null,null,"2014-10-26","Support for preparation","NS-072","Grants, loans, Consessional loans, Guarantee"]
["Support0013","S-146","NEFCO Carbon Finance and Funds",null,"Financing NAMA development for national/sectoral policy-programme-strategy. Calls for projects may be announced from time to time. ","Nordic Partnership Initiative, Nordic Climate Facility ","Asia Pacific, Latin America & Carribean","All","All","All",null,null,"2014-10-31","Support for preparation",null,"Grants"]
["Support0014","S-145","FAOSTAT Emissions Database","FAO","Access to the FAOSTAT Emissions database provides emissions data with global coverage for the Agriculture, Forestry, and Other Land Use (AFOLU)","Food and Agriculture Organization (FAO)","All","Forestry & Agriculture","Forestry & Agriculture","Forestry & Agriculture",null,null,"2014-10-31","Access to data",null,"No money",null,null,null,null,null,null,"faostat3.fao.org/browse/G1/*/E\nfaostat3.fao.org/browse/G2/*/E\n"]
["Support0015","S-186","UNDP MDG Carbon","UNDP in Australia","MDG Carbon provides targeted technical and financial support for the detailed design of a NAMA Design Document, so that the programme will be ready for implementation once funding is secured. ","UNDP MDG Carbon","Africa, Asia, LDC, SIDS","Renewables & EE","Renewables & EE","All except geothermal, Ocean,CCS & landfill",null,null,"2015-05-06","Support for preparation","NS-196, NS-199, NS-227, NS-230","Grants",{"$f":"R18","v":0.28100000000000003},{"$f":"0.07+0.06+0.07+0.081","v":0.28100000000000003},null,null,null,null,"UNDP MDG Carbon template attached.  www.mdgcarbon.org"]
["Support0016","S-195","FAO Learning tool on Nationally Appropriate Mitigation Actions (NAMAs) in the agriculture, forestry and other land use (AFOLU) sector","FAO",null,"Food and Agriculture Organization (FAO)","All","Forestry & Agriculture","Forestry & Agriculture","Forestry & Agriculture",null,null,"2015-06-25","Access to NAMA tool",null,"No money"]
["Support0017","S-204","Climate Technology Centre and Network (CTCN) Technical Assistance","UNFCCC","Technical Assistance to Developing countries through their Nationally Designated Entities to the CTCN on their request.","Climate Technology Centre and Network (CTCN)","All","All","All","All",null,null,"2015-09-14","Access to technical assistance",null,"No money",null,null,null,null,null,null,"If you are an NDE that is registered with the CTCN, you can submit a request. Alternatively download the request form, complete it and send to ctcn@unep.org. Request forms are available for download at on http://www.ctc-n.org/technical-assistance/submit-request"]
["Support0018","S-205","UNDP Low Emission Capacity Building Programme (LECB Programme) ","EU, Germany & Australia","Identification and formulation of NAMAs, Low emission development strategies (LEDS), mitigation actions in selected industries with the participation of the private sector, the strengthening of GHG inventory management systems and the design of Measurement, Reporting and Verification (MRV) systems.","UNDP New York","The LECB Programme is active in 25 countries: Argentina, Bhutan, Chile, China, Colombia, Costa Rica, DRC, Ecuador, Egypt, Ghana, Indonesia, Kenya, Lebanon, Malaysia, Mexico, Moldova, Morocco, Peru, Philippines, Tanzania, Thailand, Trinidad and Tobago, Uganda, Vietnam and Zambia.","All","All","All",null,null,"2015-09-22","Support for preparation",null,"Grants"]
[]
[null,null,"These official Supports for NAMAs is submitted to the NAMA-registry Prototype at unfccc.int/cooperation_support/nama/items/6945.php where you can also submit your NAMA to the UNFCCC",null,null,null,null,null,null,null,null,null,null,null,null,null,{"$f":"SUM(Q4:Q22)","v":175.63527771428576},{"$f":"SUM(R4:R22)","v":175.63527771428576}]

{"sheet":"Analysis","index":2,"n_rows":104,"n_cols":8,"rows_kept":104,"cut":false,"hidden":false,"merged":[[24,2,24,3],[97,0,97,1],[99,0,99,1]]}
[{"$f":"+NAMAs!A1","v":"The NAMApipeline was produced by Jørgen Fenhann, UNEP DTU Partnership, 1. May 2016, jqfe@dtu.dk, Phone (+45)40202789"}]
[]
[]
[]
[]
[]
[]
[]
[]
[]
[]
[]
[]
[]
[]
[]
[]
[]
[]
[]
[]
[]
[]
[null,null,null,null,null,"Total","Total","Reported annual"]
["Submitted NAMAs",null,"External support",null,null,"Cost","Requested","GHG reduction"]
["Host country","For recognition","For preparation","For implementation","Total"," (MUS$)","Support (MUS$)","in 2020 (MtCO2e)"]
["Latin America",{"$f":"SUM(B28:B35)","v":5},{"$f":"SUM(C28:C35)","v":17},21,{"$f":"SUM(B27:D27)","v":43},{"$f":"SUM(F28:F35)","v":9847.9750956903845},{"$f":"SUM(G28:G35)","v":2119.7530768805523},121.39502600000002]
["Chile",1,null,4,{"$f":"SUM(B28:D28)","v":5},231.9365,63.85,26.593]
["Costa Rica",null,null,2,2,8.3333333333333339,8.3333333333333339,0.52]
["Colombia",1,3,3,7,256.23298835705043,44.34294954721863,19.828876000000001]
["Dominica",null,null,1,1,1000,500,0.2]
["Dominican Republic",null,1,4,5,604.14847400000008,359.38447400000001,2.0680000000000001]
["Mexico",null,10,5,15,1036.0988,1033.6173200000001,65.49815000000001]
["Peru",null,null,1,1,6202,106.5,0.15499999999999994]
["Uruguay",3,3,1,7,509.22500000000002,3.7250000000000001,6.532]
["Asia & Pacific",{"$f":"SUM(B37:B43)","v":1},13,{"$f":"SUM(D37:D43)","v":7},21,{"$f":"SUM(F37:F43)","v":1502.4602113333333},{"$f":"SUM(G37:G43)","v":524.42887333333329},{"$f":"SUM(H37:H43)","v":26.591467184666669}]
["Cook Islands",null,null,1,1,201.56390000000002,0.45924999999999999,2.5000000000000001E-2]
["Indonesia",null,null,2,2,1094,350.5,5.4249999999999998]
["Lao PDR",null,1,1,2,2.9925379999999997,2.5658499999999997,0]
["Malaysia",1,1,1,3,40.1,7.6,4.5608296666666659]
["Mongolia",null,2,2,4,23.109500000000001,22.609500000000001,0.55063751800000005]
["Pakistan",null,8,null,{"$f":"SUM(B42:D42)","v":8},140.55197133333331,140.55197133333331,14.030000000000001]
["Thailand",null,1,null,1,0.14230200000000001,0.14230200000000001,2]
["Vanuatu",null,1,1,2,5.875,5.875,1.35E-2]
["Europe & Central Asia",{"$f":"SUM(B46:B52)","v":2},2,17,21,{"$f":"SUM(F46:F52)","v":3912.1684897804889},{"$f":"SUM(G46:G52)","v":3021.849796883886},17.934074361904763]
["Armenia",null,null,1,{"$f":"SUM(B46:D46)","v":1},224.5,24.5,0.1]
["Azerbaijan",null,1,null,1,0.1,0.1,0]
["Bosnia and Herzegovina",null,null,1,1,15.480658483829238,11.694696,2.2800000000000001E-4]
["Georgia",null,null,3,3,43.415419095238093,32.858992000000001,4.8000000000000001E-2]
["Kazakhstan",null,1,null,1,0.15,0.15,0]
["Serbia",1,null,12,13,3628.5224122014215,2952.5461088838861,6.9858463619047617]
["Uzbekistan",1,null,null,1,0,0,10.8]
["Africa",{"$f":"SUM(B54:B64)","v":1},{"$f":"SUM(C54:C64)","v":27},{"$f":"SUM(D54:D64)","v":6},34,{"$f":"SUM(F54:F64)","v":22847.980000000003},{"$f":"SUM(G54:G64)","v":1745.2779999999998},{"$f":"SUM(H54:H64)","v":35.372297333333329}]
["Ethiopia",1,2,1,{"$f":"SUM(B54:D54)","v":4},16845.2,8,9]
["Gambia",null,1,1,2,23.192,11.49,12]
["Kenya",null,null,1,1,4538.3,288.3,3.77]
["Mali",null,2,null,2,1.04,0.34,2.4850339999999997]
["Namibia",null,1,1,2,14.07,10.97,0.04]
["Rwanda",null,7,null,7,2.8109999999999999,2.8109999999999999,0.61969999999999981]
["Sierra Leone",null,1,null,null,0.15,0.15,0]
["Sudan",null,null,1,1,500,500,0]
["Tunisia",null,null,1,1,919.4,919.4,2.0333333333333332]
["Uganda",null,9,null,9,2.0169999999999999,2.0169999999999999,2.5362299999999998]
["Zimbabwe",null,4,null,4,1.8,1.8,2.8879999999999999]
["Middle East",{"$f":"SUM(B66:B67)","v":0},{"$f":"SUM(C66:C67)","v":6},8,14,{"$f":"SUM(F67)","v":1017.4699999999999},622.2879999999999,0.97687999999999997]
["Jordan",null,6,3,{"$f":"SUM(B66:D66)","v":9},290.68185100000005,84.647021999999993,2.5424186600000001]
["Syria",null,null,5,5,1017.4699999999999,622.2879999999999,0.97687999999999997]
["Total",{"$f":"+B27+B36+B45+B53+B65","v":9},{"$f":"+C27+C36+C45+C53+C65","v":65},{"$f":"+D27+D36+D45+D53+D65","v":59},133,{"$f":"+F27+F36+F45+F53+F65","v":39128.053796804212},{"$f":"+G27+G36+G45+G53+G65","v":8033.5977470977714},{"$f":"+H27+H36+H45+H53+H65","v":202.26974487990481}]
["Least Developed Countries",{"$f":"B38+B54+B57+B60+B61","v":1},{"$f":"C38+C54+C57+C60+C61","v":5},4,9,18440.390000000003,858.99,16.910034]
[]
[]
[]
["Submitted NAMAs"]
["Sector or type","Number"]
["Agriculture",9]
["Biomass energy",1]
["Cement",2]
["EE demand side",14]
["EE industry",2]
["EE service",14]
["EE supply side",13]
["Forestry",5]
["Fossil fuel switch",4]
["Fugitive",3]
["Geothermal",2]
["Methane avoidance",5]
["Renewable energy",14]
["Solar",11]
["Transport",17]
["Turism",1]
["Waste",9]
["Wind",5]
["All sectors",2]
["Total",{"$f":"SUM(B75:B93)","v":133}]
[]
[]
["Support offered",null,"From","MUS$"]
["ODA for Climate Change Measures",null,"Japan",{"$f":"+Support!Q13","v":0.96}]
["NAMA Facility",null,"UK & Germany",{"$f":"+Support!Q6","v":159.21428571428575}]
["Support for Activities related to sustainable Management of Forests",null,"Austria",{"$f":"+Support!Q12","v":1.9404920000000001}]
["Inter-American Development Bank (IDB)",null,"Latin America",{"$f":"+Support!Q15","v":0}]
["UNDP MDG Carbon",null,"Australia",{"$f":"+Support!Q18","v":0.28100000000000003}]
["Global Environmental Facility (GEF)",null,"GEF",{"$f":"+Support!Q7","v":13.2395}]
["Total",null,null,{"$f":"SUM(D98:D103)","v":175.63527771428576}," Or",{"$f":"+D104/G68","v":2.1862592980552955E-2},"of the requested support."]

{"sheet":"Submissions","index":3,"n_rows":110,"n_cols":10,"rows_kept":110,"cut":false,"hidden":false,"merged":[[107,0,107,4],[108,0,108,4],[109,0,109,4]]}
["The NAMApipeline was produced by Jørgen Fenhann, UNEP DTU Partnership, 1. May 2016, jqfe@dtu.dk, Phone (+45)40202789"]
[]
["ID","Region","Sub-region","Country","Type of action","Sector","Type","Date of submission","Reference","Energy & Emission reduction goal"]
["Submiss0001","Middle-East","Iranian Plateau","Afghanistan","GHG strategy/inventory","n.a.","n.a.","2010-03-22","Copenhagen Accord"]
["Submiss0002","Africa","North Africa","Algeria","GHG emission below BAU level","Renewable energy","n.a.","2010-03-09","Copenhagen Accord, chapeau"]
["Submiss0003","Latin America","Caribbean","Antigua and Barbuda","GHG mitigation target","n.a.","n.a.","2010-05-31","Copenhagen Accord","GHG emission reduction of 25% below 1990 levels by 2020"]
["Submiss0005","Europe & Central Asia","Central Asia","Armenia","GHG strategy/inventory+Sustainable forest management (REDD)","Agriculture and Forests+Waste+Conventional Power Production+Energy consumption","Efficiency improvements+Waste+Alternative fuels","2010-02-01","Copenhagen Accord"]
["Submiss0006","Africa","West Africa","Benin","Single project activities (CDM)","Transport+Agriculture and Forests+Waste","Public transportation+Forests+Solid waste","2010-02-08","Copenhagen Accord"]
["Submiss0007","Asia & Pacific","Southern Asia","Bhutan","GHG mitigation target","All","n.a.","2010-02-05","Copenhagen Accord","Efforts to remain GHG neutral"]
["Submiss0008","Africa","Southern Africa","Botswana","GHG emission below BAU level","All","Forests+Solar+Wind+CO2 Capture and recycling","2010-02-01","Copenhagen Accord"]
["Submiss0009","Latin America","South America","Brazil","GHG emission below BAU level","Agriculture and Forests+Renewable energy","Forest+Fuels production+Hydro","2010-01-29","Copenhagen Accord","GHG reduction of 36.1 % - 38.9 % below its BAU emissions in 2020"]
["Submiss0010","Asia & Pacific","Southeast Asia","Cambodia","Sustainable forest management (REDD)","Agriculture and Forests","Forest","2010-01-29","Copenhagen Accord, chapeau"]
["Submiss0011","Africa","Central Africa","Central African Republic","Single project activities (CDM)+Sustainable forest management (REDD)","Agriculture and Forests+Waste+Renewable energy+Transport+Conventional Power Production","Forest+Buildings+Hydro+Wind","2010-03-01","Copenhagen Accord"]
["Submiss0012","Africa","Central Africa","Chad","Single project activities+Sustainable forest management (REDD)","Agriculture and Forests+Transport+Renewable energy+Conventional Power Production+Energy consumption","Forets+Solar+Biomass+Various household product","2010-08-16","Copenhagen Accord"]
["Submiss0013","Latin America","South America","Chile","GHG emission below BAU level","Agriculture and Forests+Renewable energy+Energy consumption","n.a.","2010-08-23","Copenhagen Accord","GHG reduction of 20% below its BAU emissions in 2020"]
["Submiss0014","Asia & Pacific","East Asia","China","GHG intensity target+Enhancing forest carbon sinks","Agriculture and Forests+Renewable energy+Conventional power production","n.a.","2010-01-28","Copenhagen Accord","Reduce CO2 emissions per unit of GDP by 40–45% by 2020 compared to 2005"]
["Submiss0015","Latin America","South America","Colombia","Renewable energy target","Agriculture and Forests+Transport+Waste+Renewable energy+Industrial Production Processes","n.a.","2010-08-02","Copenhagen Accord","77% of total electric capacity installed will be from renewable sources and 20 % of fuel consumption from biofuels by 2020."]
["Submiss0016","Africa","Central Africa","Cameroon","GHG mitigation target","Agriculture and Forests","Forest","2010-06-08","Copenhagen Accord"]
["Submiss0017","Africa","Central Africa","Congo","Single project activities (CDM)","Agriculture and Forests+Renewable energy+Transport+Energy consumption","Forests+Fuels production+Hydro+Biomass+Alternative fuels","2010-02-03","Copenhagen Accord"]
["Submiss0018","Latin America","Central America","Costa Rica","GHG mitigation target","Transport+Renewable energy+Agriculture and Forests+Waste","n.a.","2010-01-29","Copenhagen Accord"]
["Submiss0019","Africa","West Africa","Côte d'Ivoire","GHG strategy/inventory+Sustainable forest management (REDD)","Agriculture and Forests+Renewable energy+Transport+Energy consumption","Forests+Hydro+Solar+Biomass","2010-02-12","Copenhagen Accord"]
["Submiss0020","Africa","East Africa","Eritrea","GHG strategy/inventory+Promotion","Agriculture and Forests+Energy consumption","n.a.","2010-03-16","Copenhagen Accord"]
["Submiss0021","Africa","East Africa","Ethiopia","Single project activities (CDM)","Renewable energy+Transport+Agriculture and Forests+Waste","Many","2010-01-29","Copenhagen Accord"]
["Submiss0022","Africa","Central Africa","Gabon","Sustainable forest management (REDD)+Single project activities (CDM)","Agriculture and Forests+Renewable energy+Waste+Transport","Many","2010-02-24","Copenhagen Accord"]
["Submiss0023","Europe & Central Asia","Central Asia","Georgia","GHG strategy/inventory+Single project activities (CDM)","Renewable energy","Many","2010-02-01","Copenhagen Accord"]
["Submiss0024","Africa","West Africa","Ghana","Single project activities (CDM)+Sustainable forest management (REDD)","All","Many","2010-02-15","Copenhagen Accord"]
["Submiss0025","Asia & Pacific","Southern Asia","India","GHG intensity target","n.a.","n.a.","2010-01-30","Copenhagen Accord","Reduce CO2 emissions (except agriculture) per unit of GDP by 20–25% by 2020 compared to 2005"]
["Submiss0026","Asia & Pacific","Southeast Asia","Indonesia","GHG mitigation target","Agriculture and forests+Renewable energy+Wate+Transport","Forests+Solid waste+Liquid waste","2010-01-30","Copenhagen Accord","GHG emissions reduction by 26 % by 2020"]
["Submiss0027","Middle-East","Fertile Crescent","Israel","GHG emission below BAU level","Renewable energy+Energy consumption","n.a.","2010-02-01","Copenhagen Accord","GHG reduction of 20% below its BAU emissions in 2020"]
["Submiss0028","Middle-East","Fertile Crescent","Jordan","Single project activities (CDM)+Regulation","Transport+Waste+Energy Consumption+Conventional power production+Agriculture and forests","Many","2010-01-31","Copenhagen Accord"]
["Submiss0029","Africa","East Africa","Madagascar","GHG strategy/inventory+Sustainable forest management (REDD)+Promotion","Agriculture and Forests+Renewable energy+Waste+Transport","Many","2010-01-25","Copenhagen Accord"]
["Submiss0030","Asia & Pacific","Southern Asia","Maldives","GHG intensity target","n.a.","n.a.","2010-01-29","Copenhagen Accord","Long-term  transformational effort to achieve carbon neutrality as a country by 2020"]
["Submiss0031","Asia & Pacific","Pacific","Marshall Islands","GHG mitigation target","n.a.","n.a.","2010-01-27","Copenhagen Accord","GHG reduction of 40% below 2009 level"]
["Submiss0032","Africa","East Africa","Mauritius","n/a","Renewable Energy","n.a.","2010-06-16","Copenhagen Accord, chapeau"]
["Submiss0033","Africa","West Africa","Mauritania","Enhancing forest carbon sinks+Single project activities (CDM)","Agriculture and forests+Energy consumption+Renewable energy","Forests+Public transport+Various household installation+Biomass+Solar","2010-02-22","Copenhagen Accord"]
["Submiss0034","Latin America","North America","Mexico","GHG emission below BAU level","n.a.","n.a.","2010-01-31","Copenhagen Accord","GHG reduction of 30% below its BAU emissions in 2020"]
["Submiss0035","Asia & Pacific","East Asia","Mongolia","Single project activities (CDM)+Sustainable forest management (REDD)","All","Many","2010-01-28","Copenhagen Accord"]
["Submiss0036","Africa","North Africa","Morocco","Single project activities (CDM)","All","Many","2010-01-29","Copenhagen Accord"]
["Submiss0037","Asia & Pacific","Southeast Asia","Papua New Guinea","GHG mitigation target","All","n.a.","2010-02-02","Copenhagen Accord"]
["Submiss0038","Latin America","South America","Peru","Renewable energy target+Sustainable forest management (REDD)","Agriculture and forests+Renewable energy+Waste","n.a.","2010-06-24","Copenhagen Accord","Renewable energy represents at least 33% of total energy used and zero net deforestation by 2020 "]
["Submiss0039","Asia & Pacific","East Asia","South Korea","GHG emission below BAU level","n.a.","n.a.","2010-01-01","Copenhagen Accord","GHG emissions reduction by 30 % below BAU by 2020"]
["Submiss0040","Europe & Central Asia","Europe","Moldova","GHG mitigation target","n.a.","n.a.","2010-01-29","Copenhagen Accord","GHG emissions reduction by 35 % compared with the base year 1990, by 2020"]
["Submiss0041","Europe & Central Asia","Europe","San Marino","Energy efficiency target+Promotion","All","n.a.","2010-04-16","Copenhagen Accord"]
["Submiss0042","Africa","West Africa","Sierra Leone","GHG strategy/inventory+Sustainable forest management (REDD)","Agriculture and forests+Renewable energy+Waste+Transport+Energy consumption","n.a.",null,"Copenhagen Accord"]
["Submiss0043","Asia & Pacific","Southeast Asia","Singapore","GHG emission below BAU level","n.a.","n.a.","2010-01-28","Copenhagen Accord","GHG emissions reduction by 16 % below BAU by 2020"]
["Submiss0044","Africa","Southern Africa","South Africa","GHG emission below BAU level","n.a.","n.a.","2010-01-29","Copenhagen Accord","GHG emissions reduction by 34 % below BAU by 2020"]
["Submiss0045","Europe & Central Asia","Central Asia","Tajikistan","GHG strategy/inventory","Energy consumption+Renewable energy","n.a.","2011-01-12","Copenhagen Accord"]
["Submiss0046","Europe & Central Asia","Europe","Macedonia","Single project activities (CDM)","All","Many","2010-01-18","Copenhagen Accord"]
["Submiss0047","Africa","West Africa","Togo","Enhancing forest carbon sinks+Single project activities (CDM)","Agriculture and forests+Energy consumption+Renewable energy","Forests+Public transport+Various household installation+Biomass+Solar","2010-02-16","Copenhagen Accord"]
["Submiss0048","Africa","North Africa","Tunisia","Single project activities (CDM)+Enhancing forest carbon sinks","All","Many","2010-05-18","Copenhagen Accord"]
["Submiss0049","Africa","Southern Africa","Zambia",null,"n.a.","n.a.","2010-03-09","Copenhagen Accord, chapeau"]
["Submiss0050","Europe & Central Asia","Europe","Albania",null,"n.a.","n.a.","2010-01-26","Copenhagen Accord, chapeau"]
["Submiss0051","Africa","Southern Africa","Angola",null,"n.a.","n.a.","2010-08-12","Copenhagen Accord, chapeau"]
["Submiss0052","Latin America","Caribbean","Bahamas",null,"n.a.","n.a.","2010-02-01","Copenhagen Accord, chapeau"]
["Submiss0053","Asia & Pacific","Southern Asia","Bangladesh",null,"n.a.","n.a.","2010-01-25","Copenhagen Accord, chapeau"]
["Submiss0054","Latin America","Caribbean","Barbados",null,"n.a.","n.a.","2010-04-20","Copenhagen Accord, chapeau"]
["Submiss0055","Latin America","Caribbean","Belize",null,"n.a.","n.a.","2010-05-20","Copenhagen Accord, chapeau"]
["Submiss0056","Europe & Central Asia","Europe","Bosnia and Herzegovina",null,"n.a.","n.a.","2010-01-29","Copenhagen Accord, chapeau"]
["Submiss0057","Asia & Pacific","Southeast Asia","Brunei",null,"n.a.","n.a.","2010-06-07","Copenhagen Accord, chapeau"]
["Submiss0058","Africa","West Africa","Burkina Faso",null,"n.a.","n.a.","2010-03-19","Copenhagen Accord, chapeau"]
["Submiss0059","Africa","East Africa","Burundi",null,"n.a.","n.a.","2010-05-03","Copenhagen Accord, chapeau"]
["Submiss0060","Africa","West Africa","Cape Verde",null,"n.a.","n.a.","2010-04-09","Copenhagen Accord, chapeau"]
["Submiss0061","Africa","East Africa","Comoros",null,"n.a.","n.a.","2010-10-20","Copenhagen Accord, chapeau"]
["Submiss0063","Africa","Central Africa","Congo DR",null,"n.a.","n.a.","2010-01-30","Copenhagen Accord, chapeau"]
["Submiss0064","Africa","East Africa","Djibouti",null,"n.a.","n.a.","2010-02-02","Copenhagen Accord, chapeau"]
["Submiss0066","Asia & Pacific","Pacific","Fiji",null,"n.a.","n.a.","2010-01-30","Copenhagen Accord, chapeau"]
["Submiss0067","Africa","West Africa","Gambia",null,"n.a.","n.a.","2010-02-14","Copenhagen Accord, chapeau"]
["Submiss0068","Latin America","Central America","Guatemala",null,"n.a.","n.a.","2010-02-05","Copenhagen Accord, chapeau"]
["Submiss0069","Africa","West Africa","Guinea",null,"n.a.","n.a.","2010-03-19","Copenhagen Accord, chapeau"]
["Submiss0070","Africa","West Africa","Guinea-Bissau",null,"n.a.","n.a.","2010-05-06","Copenhagen Accord, chapeau"]
["Submiss0071","Latin America","South America","Guyana",null,"n.a.","n.a.","2010-02-12","Copenhagen Accord, chapeau"]
["Submiss0072","Latin America","Central America","Honduras",null,"n.a.","n.a.","2010-07-01","Copenhagen Accord, chapeau"]
["Submiss0073","Latin America","Caribbean","Jamaica",null,"n.a.","n.a.","2010-04-07","Copenhagen Accord, chapeau"]
["Submiss0074","Africa","East Africa","Kenya",null,"n.a.","n.a.","2010-05-27","Copenhagen Accord, chapeau"]
["Submiss0075","Asia & Pacific","Pacific","Kiribati",null,"n.a.","n.a.","2010-02-26","Copenhagen Accord, chapeau"]
["Submiss0076","Asia & Pacific","Southeast Asia","Lao PDR",null,"n.a.","n.a.","2010-02-15","Copenhagen Accord, chapeau"]
["Submiss0078","Africa","Southern Africa","Lesotho",null,"n.a.","n.a.","2010-01-29","Copenhagen Accord, chapeau"]
["Submiss0079","Africa","West Africa","Liberia",null,"n.a.","n.a.","2010-06-09","Copenhagen Accord, chapeau"]
["Submiss0080","Africa","East Africa","Malawi","Regulation+Promotion+R&D","Agriculture and forests+Waste+Conventional Power Production+Energy consumption+Industry+Renewable Energy","Landfills+Composting+Wastewater+Agricultural waste+Charcoal production+Stoves+Afforestation+Reforestation+Lighting+Efficiency improvements+Cement","2012-04-24","FCCC/AWGLCA/2012/MISC.2 - Malawi"]
["Submiss0081","Africa","West Africa","Mali",null,"n.a.","n.a.","2010-01-22","Copenhagen Accord, chapeau"]
["Submiss0082","Europe & Central Asia","Europe","Montenegro",null,"n.a.","n.a.","2010-01-29","Copenhagen Accord, chapeau"]
["Submiss0083","Africa","East Africa","Mozambique",null,"n.a.","n.a.","2010-04-13","Copenhagen Accord, chapeau"]
["Submiss0084","Africa","Southern Africa","Namibia",null,"n.a.","n.a.","2010-01-29","Copenhagen Accord, chapeau"]
["Submiss0085","Asia & Pacific","Southern Asia","Nepal",null,"n.a.","n.a.","2010-01-31","Copenhagen Accord, chapeau"]
["Submiss0086","Africa","West Africa","Nigeria",null,"n.a.","n.a.","2010-05-21","Copenhagen Accord, chapeau"]
["Submiss0087","Asia & Pacific","Pacific","Palau",null,"n.a.","n.a.","2010-02-04","Copenhagen Accord, chapeau"]
["Submiss0088","Latin America","Central America","Panama",null,"n.a.","n.a.","2010-01-30","Copenhagen Accord, chapeau"]
["Submiss0089","Africa","East Africa","Rwanda",null,"n.a.","n.a.","2010-01-29","Copenhagen Accord, chapeau"]
["Submiss0090","Latin America","Caribbean","Saint Lucia",null,"n.a.","n.a.","2010-07-20","Copenhagen Accord, chapeau"]
["Submiss0091","Asia & Pacific","Pacific","Samoa",null,"n.a.","n.a.","2010-01-20","Copenhagen Accord, chapeau"]
["Submiss0092","Africa","West Africa","Senegal",null,"n.a.","n.a.","2010-03-02","Copenhagen Accord, chapeau"]
["Submiss0093","Europe & Central Asia","Europe","Serbia",null,"n.a.","n.a.","2010-01-29","Copenhagen Accord, chapeau","GHG emission reduction of 28% below 1990 levels by 2020"]
["Submiss0094","Africa","Southern Africa","Swaziland","Regulation+Promotion+R&D","Agriculture and Forests","Afforestation","2012-04-24","FCCC/AWGLCA/2012/MISC.2 - Swaziland"]
["Submiss0095","Asia & Pacific","Southeast Asia","Timor-Leste",null,"n.a.","n.a.","2010-05-27","Copenhagen Accord, chapeau"]
["Submiss0096","Asia & Pacific","Pacific","Tonga",null,"n.a.","n.a.","2010-04-18","Copenhagen Accord, chapeau"]
["Submiss0097","Latin America","Caribbean","Trinidad and Tobago",null,"n.a.","n.a.","2010-01-29","Copenhagen Accord, chapeau"]
["Submiss0098","Africa","East Africa","Uganda",null,"n.a.","n.a.","2010-04-19","Copenhagen Accord, chapeau"]
["Submiss0099","Latin America","South America","Uruguay",null,"n.a.","n.a.","2010-01-29","Copenhagen Accord, chapeau"]
["Submiss0100","Middle-East","Arabian Peninsula","United Arab Emirates",null,"n.a.","n.a.","2010-02-14","Copenhagen Accord, chapeau"]
["Submiss0101","Africa","East Africa","Tanzania",null,"n.a.","n.a.","2010-02-03","Copenhagen Accord, chapeau"]
["Submiss0102","Asia & Pacific","Southeast Asia","Vietnam",null,"n.a.","n.a.","2010-04-07","Copenhagen Accord, chapeau"]
["Submiss0103","Europe & Central Asia","Central Asia","Kazakhstan",null,"n.a.","n.a.","2010-01-27","Copenhagen Accord, chapeau"]
["Submiss0104","Europe & Central Asia","Europe","Cyprus",null,"n.a.","n.a.","2010-01-28","Copenhagen Accord, chapeau"]
["Submiss0105","Africa","North Africa","Egypt","Single project activities (CDM)","Agriculture and Forests+Waste+Transport+Conventional power production","Afforestation+Mode shift: Road to rail+Fuel switch+Lighting+Water pumping+Street lighting","2012-04-24","unfccc.int/resource/docs/2012/awglca15/eng/misc02.pdf"]
["Submiss0106","Africa","West Africa","Gambia"," 8 priority NAMAs and 2 mitigation/adaptation projects described","Renewables+EE+agriculture","Solar+wind, EE stoves, rice, reforestation",null,"unfccc.int/files/focus/application/pdf/nama_foc_prop_gambia.pdf","Develop a low-emission development strategy. Reduce transmission & distribution losses by 15% in 2030."]
["Submiss0107","Africa","West Africa","Guinea","2 NAMAs described","Decentalized solar & hydro, Intensification of agriculture","Multipurpose microdams, research in renewables, agrodorestry",null,"unfccc.int/files/focus/application/pdf/nama_foc_prop_guinee.pdf"]
[]
["* \"Copenhagen Accord\" refers to countries submissions of information and their association with the Accord relating to Appendix II of the Copenhagen Accord"]
["** \"Copenhagen Accord, chapeau\" refers to countries submissions of their association with the Accord in relation to the listing in the chapeau of the Copenhagen Accord"]
["*** These official NAMAs is submitted to the NAMA-registry Prototype at unfccc.int/cooperation_support/nama/items/6945.php where you can also submit your NAMA to the UNFCCC"]

{"sheet":"Time","index":4,"n_rows":2,"n_cols":162,"rows_kept":2,"cut":false,"hidden":false,"merged":[]}
[null,"2012-01-01","2012-02-01","2012-03-01","2012-04-01","2012-05-01","2012-06-01","2012-07-01","2012-08-01","2012-09-01","2012-10-01","2012-11-01","2012-12-01","2013-01-01","2013-02-01","2013-03-01","2013-04-01","2013-05-01","2013-06-01","2013-07-01","2013-08-01","2013-09-01","2013-10-01","2013-11-01","2013-12-01","2014-01-01","2014-02-01","2014-03-01","2014-04-01","2014-05-01","2014-06-01","2014-07-01","2014-08-01","2014-09-01","2014-10-01","2014-11-01","2014-12-01","2015-01-01","2015-02-01","2015-03-01","2015-04-01","2015-05-01","2015-06-01","2015-07-01","2015-08-01","2015-09-01","2015-10-01","2015-11-01","2015-12-01","2016-01-01","2016-02-01","2016-03-01","2016-04-01","2016-05-01","2016-06-01","2016-07-01","2016-08-01","2016-09-01","2016-10-01","2016-11-01","2016-12-01","Total"]
["Number of NAMAs submitted",null,null,null,null,null,null,null,null,2,1,7,1,1,null,2,14,null,9,null,null,null,1,2,null,null,1,2,1,2,2,null,2,1,9,4,19,4,null,null,1,null,7,3,2,null,13,6,3,3,3,1,1,5,null,null,null,null,null,null,null,{"$f":"SUM(B2:BI2)","v":135},null,null,null,null,null,null,null,null,null,null,null,null,null,null,null,null,null,null,null,null,null,null,null,null,null,null,null,null,null,null,null,null,null,null,null,null,null,null,null,null,null,null,null,null,null,null,null,null,null,null,null,null,null,null,null,null,null,null,null,null,null,null,null,null,null,null,null,null,null,null,null,null,null,null,null,null,null,null,null,null,3,1,8,1,1,null,2,14,null,9,null,null,null,1,2,null,null,1,2,1]

{"sheet":"New ideas","index":5,"n_rows":2,"n_cols":1,"rows_kept":2,"cut":false,"hidden":false,"merged":[]}
[]
["Add column on \"Type of finance\""]

{"sheet":"NAMA Facility","index":6,"n_rows":18,"n_cols":5,"rows_kept":18,"cut":false,"hidden":false,"merged":[]}
[]
[null,"NAMA Facility support",null,"M$","MEuro"]
["NS-8","Expanding self‐supply renewable energy systems (SSRES) in Chile","Chile",null,15]
["NS-65","Sustainable Urban Transport Initiative (SUTRI)","Indinesia",null,14]
["NS-72","Low Carbon Coffee - Costa Rica","Costa Rica",null,7]
["NS-108","NAMA for New Residential Buildings","Mexico",null,14]
["NS-127","Colombia TOD NAMA","Colombia",18.5]
["NS-198","Thailand Refrigeration and Air Conditioning NAMA (RAC NAMA)","Thailand",14.7]
["NS-218","Colombian NAMA for the domestic refrigeration sector","Colombia",null,9]
["NS-223","TRANSPerú - Sustainable Urban Transport NAMA","Peru",9]
[]
[null,"Forestry","Tajikistan",null,13]
[null,"Biomass","Burkina Faso",null,13.5]
[null,"Waste","China",null,8]
[null,"Transport","Kenya",null,20]
[null,"Energy efficiency for public buildings in provinces and municipalities","South Africa",null,18.5]
[null,"Energy efficient cookstoves ","Guatamala",null,10.9]
[null,"Total",null,{"$f":"SUM(D3:D17)","v":42.2},{"$f":"SUM(E3:E17)","v":142.9}]